Workbook

Sheet 球面波
A1: dr | B1: 0.01 | D1: fn | E1: 1
D2: fn1 | E2: 0.379988 | F2: =+B3^2/E3^2 -> 0.3947860224
A3: ω | B3: =2*3.1416/B4 -> 0.62832 | D3: c | E3: 1
A4: T | B4: 10 | D4: fn2 | E4: =+B3^2/E3^2 -> 0.3947860224
A5: rB | B5: 95
A6: KE | B6: =B8*COS(B3*B5/E3)/((B5-B9)^3) -> -0.0009999999903
A7: dt | B7: =0.2/16 -> 0.0125
A8: Ea0 | B8: 1
A9: rB1 | B9: 85
A10: rB2 | B10: 71.3
A11: r | B11: Er | C11: dEa/dr | D11: Ei | E11: dEi/dr | F11: dEr/dr/Er | G11: dEi/dr/Ei | H11: Er/dEr/dr | I11: Ei/dEi/dr | J11: fnr | K11: r | L11: dEr/dr/Er | M11: dEi/dr/Ei | N11: dEr/dr/Er-dEi/dr/Ei | O11: 1/r | P11: Vr | Q11: Vi | R11: |V|
A12: 0 | B12: 0
A13: =+A12+$B$1 -> 0.01 | B13: -82688.1615 | C13: 6531130.814 | D13: 262967.992 | E13: -20770890.02 | F13: =+C13/B13 -> -78.98507713 | G13: =+E13/D13 -> -78.98638105 | H13: =+B13/C13 -> -0.0126606194 | I13: =+D13/E13 -> -0.0126604104 | J13: 0.3947860224 | K13: =+A13 -> 0.01 | L13: =+F13 -> -78.98507713 | M13: =+G13 -> -78.98638105 | N13: =+L13-M13 -> 0.001303914214 | O13: =1/K13 -> 100 | P13: -0.01022100463 | Q13: 370006.1397 | R13: 370006.1397
A14: =+A13+$B$1 -> 0.02 | B14: -17376.85336 | C14: 1018586.714 | D14: 55259.0918 | E14: -3239690.553 | F14: =+C14/B14 -> -58.61744317 | G14: =+E14/D14 -> -58.62728552 | H14: =+B14/C14 -> -0.01705976832 | I14: =+D14/E14 -> -0.01705690432 | J14: 0.3947860224 | K14: =+A14 -> 0.02 | L14: =+F14 -> -58.61744317 | M14: -58.62728552 | N14: =+L14-M14 -> 0.009842356962 | O14: =1/K14 -> 50 | P14: -0.01022100463 | Q14: 369453.5488 | R14: 369453.5488
A15: 0.03 | B15: -7190.986217 | C15: 329518.7017 | D15: 22862.18627 | E15: -1048290.62 | F15: -45.82385388 | G15: -45.85259726 | H15: -0.02182269528 | I15: -0.02180901541 | J15: 0.3947860224 | K15: 0.03 | L15: -45.82385388 | M15: -45.85259726 | N15: 0.02874337627 | O15: 33.33333333 | P15: -0.01022100463 | Q15: 369224.927 | R15: 369224.927
A16: 0.04 | B16: -3895.7992 | C16: 145767.2317 | D16: 12379.28008 | E16: -463917.304 | F16: -37.41651563 | G16: -37.47530561 | H16: -0.02672616579 | I16: -0.02668423869 | J16: 0.3947860224 | K16: 0.04 | L16: -37.41651563 | M16: -37.47530561 | N16: 0.05878997735 | O16: 25 | P16: -0.01022100463 | Q16: 369101.1342 | R16: 369101.1342
A17: 0.05 | B17: -2438.126883 | C17: 76860.43041 | D17: 7740.107035 | E17: -244777.3107 | F17: -31.52437674 | G17: -31.62453822 | H17: -0.03172148361 | I17: -0.03162101509 | J17: 0.3947860224 | K17: 0.05 | L17: -31.52437674 | M17: -31.62453822 | N17: 0.1001614763 | O17: 20 | P17: -0.01022100463 | Q17: 369023.7331 | R17: 369023.7331
A18: 0.06 | B18: -1669.522579 | C18: 45360.17841 | D18: 5292.333928 | E18: -144599.0281 | F18: -27.16955073 | G18: -27.32235533 | H18: -0.03680590857 | I18: -0.0366000657 | J18: 0.3947860224 | K18: 0.06 | L18: -27.16955073 | M18: -27.32235533 | N18: 0.1528045953 | O18: 16.66666667 | P18: -0.01022100463 | Q18: 368970.8097 | R18: 368970.8097
A19: 0.07 | B19: -1215.920795 | C19: 28953.79716 | D19: 3846.343647 | E19: -92422.8392 | F19: -23.81223948 | G19: -24.02875241 | H19: -0.0419952101 | I19: -0.04161680901 | J19: 0.3947860224 | K19: 0.07 | L19: -23.81223948 | M19: -24.02875241 | N19: 0.216512934 | O19: 14.28571429 | P19: -0.01022100463 | Q19: 368932.3463 | R19: 368932.3463
A20: 0.08 | B20: -926.3828235 | C20: 19578.72216 | D20: 2922.115255 | E20: -62607.87412 | F20: -21.13459109 | G20: -21.42553207 | H20: -0.04731579598 | I20: -0.04667328664 | J20: 0.3947860224 | K20: 0.08 | L20: -21.13459109 | M20: -21.42553207 | N20: 0.290940988 | O20: 12.5 | P20: -0.01022100463 | Q20: 368903.1252 | R20: 368903.1252
A21: 0.09 | B21: -730.5956019 | C21: 13836.48873 | D21: 2296.036514 | E21: -44346.20801 | F21: -18.93864224 | G21: -19.31424337 | H21: -0.0528020957 | I21: -0.05177526144 | J21: 0.3947860224 | K21: 0.09 | L21: -18.93864224 | M21: -19.31424337 | N21: 0.3756011282 | O21: 11.11111111 | P21: -0.01022100463 | Q21: 368880.1648 | R21: 368880.1648
A22: 0.1 | B22: -592.2307146 | C22: 10124.33782 | D22: 1852.574434 | E22: -32540.68649 | F22: -17.09525961 | G22: -17.5651169 | H22: -0.0584957481 | I22: -0.05693101879 | J22: 0.3947860224 | K22: 0.1 | L22: -17.09525961 | M22: -17.5651169 | N22: 0.4698572826 | O22: 10 | P22: -0.01022100463 | Q22: 368861.6391 | R22: 368861.6391
A23: 0.11 | B23: -490.9873364 | C23: 7618.635954 | D23: 1527.167569 | E23: -24571.95946 | F23: -15.51697037 | G23: -16.08989083 | H23: -0.06444556997 | I23: -0.06215082568 | J23: 0.3947860224 | K23: 0.11 | L23: -15.51697037 | M23: -16.08989083 | N23: 0.5729204528 | O23: 9.090909091 | P23: -0.01022100463 | Q23: 368846.3674 | R23: 368846.3674
A24: 0.12 | B24: -414.8009769 | C24: 5866.396888 | D24: 1281.447974 | E24: -18999.42307 | F24: -14.14267857 | G24: -14.82652707 | H24: -0.07070796348 | I24: -0.06744667821 | J24: 0.3947860224 | K24: 0.12 | L24: -14.14267857 | M24: -14.82652707 | N24: 0.683848492 | O24: 8.333333333 | P24: -0.01022100463 | Q24: 368833.5529 | R24: 368833.5529
A25: 0.13 | B25: -356.137008 | C25: 4604.367561 | D25: 1091.453744 | E25: -14985.87008 | F25: -12.92864111 | G25: -13.73019257 | H25: -0.07734764944 | I25: -0.07283219043 | J25: 0.3947860224 | K25: 0.13 | L25: -12.92864111 | M25: -13.73019257 | N25: 0.8015514661 | O25: 7.692307692 | P25: -0.01022100463 | Q25: 368822.6384 | R25: 368822.6384
A26: 0.14 | B26: -310.0933324 | C26: 3672.407443 | D26: 941.5950427 | E26: -12022.01557 | F26: -11.84291005 | G26: -12.76771332 | H26: -0.08443870601 | I26: -0.0783225606 | J26: 0.3947860224 | K26: 0.14 | L26: -11.84291005 | M26: -12.76771332 | N26: 0.9248032665 | O26: 7.142857143 | P26: -0.01022100463 | Q26: 368813.2224 | R26: 368813.2224
A27: 0.15 | B27: -273.369258 | C27: 2969.276818 | D27: 821.3748871 | E27: -9785.893186 | F27: -10.86178029 | G27: -11.91403991 | H27: -0.09206593886 | I27: -0.08393458538 | J27: 0.3947860224 | K27: 0.15 | L27: -10.86178029 | M27: -11.91403991 | N27: 1.052259621 | O27: 6.666666667 | P27: -0.01022100463 | Q27: 368805.0087 | R27: 368805.0087
A28: 0.16 | B28: -243.6764898 | C28: 2428.831318 | D28: 723.5159552 | E28: -8067.14814 | F28: -9.967442161 | G28: -11.14992431 | H28: -0.1003266419 | I28: -0.08968670745 | J28: 0.3947860224 | K28: 0.16 | L28: -9.967442161 | M28: -11.14992431 | N28: 1.182482153 | O28: 6.25 | P28: -0.01022100463 | Q28: 368797.7735 | R28: 368797.7735
A29: 0.17 | B29: -219.3881766 | C29: 2006.608271 | D29: 642.8444738 | E29: -6724.378573 | F29: -9.146382918 | G29: -10.46035059 | H29: -0.1093328378 | I29: -0.09559909021 | J29: 0.3947860224 | K29: 0.17 | L29: -9.146382918 | M29: -10.46035059 | N29: 1.313967675 | O29: 5.882352941 | P29: -0.01022100463 | Q29: 368791.3451 | R29: 368791.3451
A30: 0.18 | B30: -199.3220939 | C30: 1671.967095 | D30: 575.6006881 | E30: -5660.140155 | F30: -8.388267762 | G30: -9.833449251 | H30: -0.1192141248 | I30: -0.1016937165 | J30: 0.3947860224 | K30: 0.18 | L30: -8.388267762 | M30: -9.833449251 | N30: 1.445181489 | O30: 5.555555556 | P30: -0.01022100463 | Q30: 368785.589 | R30: 368785.589
A31: 0.19 | B31: -182.602423 | C31: 1403.324595 | D31: 518.9992865 | E31: -4805.793203 | F31: -7.685136768 | G31: -9.259729883 | H31: -0.1301213017 | I31: -0.1079945109 | J31: 0.3947860224 | K31: 0.19 | L31: -7.685136768 | M31: -9.259729883 | N31: 1.574593114 | O31: 5.263157895 | P31: -0.01022100463 | Q31: 368780.3991 | R31: 368780.3991
A32: 0.2 | B32: -168.569177 | C32: 1185.178805 | D32: 470.9413545 | E32: -4112.037783 | F32: -7.030815634 | G32: -8.731528338 | H32: -0.1422310088 | I32: -0.1145274872 | J32: 0.3947860224 | K32: 0.2 | L32: -7.030815634 | M32: -8.731528338 | N32: 1.700712704 | O32: 5 | P32: -0.01022100463 | Q32: 368775.6896 | R32: 368775.6896
A33: 0.21 | B33: -156.717389 | C33: 1006.200101 | D33: 429.8209767 | E33: -3542.842995 | F33: -6.420475145 | G33: -8.242601424 | H33: -0.1557517127 | I33: -0.1213209215 | J33: 0.3947860224 | K33: 0.21 | L33: -6.420475145 | M33: -8.242601424 | N33: 1.82212628 | O33: 4.761904762 | P33: -0.01022100463 | Q33: 368771.3914 | R33: 368771.3914
A34: 0.22 | B34: -146.655388 | C34: 857.977571 | D34: 394.3925467 | E34: -3071.460148 | F34: -5.850296964 | G34: -7.787825031 | H34: -0.1709314939 | I34: -0.1284055556 | J34: 0.3947860224 | K34: 0.22 | L34: -5.850296964 | M34: -7.787825031 | N34: 1.937528067 | O34: 4.545454545 | P34: -0.01022100463 | Q34: 368767.4475 | R34: 368767.4475
A35: 0.23 | B35: -138.0756122 | C35: 734.1780718 | D35: 363.6779453 | E35: -2677.748338 | F35: -5.317217573 | G35: -7.362965978 | H35: -0.1880682869 | I35: -0.1358148337 | J35: 0.3947860224 | K35: 0.23 | L35: -5.317217573 | M35: -7.362965978 | N35: 2.045748405 | O35: 4.347826087 | P35: -0.01022100463 | Q35: 368763.8107 | R35: 368763.8107
A36: 0.24 | B36: -130.7338315 | C36: 629.971189 | D36: 336.9004619 | E36: -2346.345702 | F36: -4.81873117 | G36: -6.964507227 | H36: -0.2075235087 | I36: -0.1435851766 | J36: 0.3947860224 | K36: 0.24 | L36: -4.81873117 | M36: -6.964507227 | N36: 2.145776057 | O36: 4.166666667 | P36: -0.01022100463 | Q36: 368760.4417 | R36: 368760.4417
A37: 0.25 | B37: -124.4341196 | C37: 541.6291361 | D37: 313.4370049 | E37: -2065.396992 | F37: -4.352738121 | G37: -6.589512279 | H37: -0.2297404466 | I37: -0.1517562997 | J37: 0.3947860224 | K37: 0.25 | L37: -4.352738121 | M37: -6.589512279 | N37: 2.236774158 | O37: 4 | P37: -0.01022100463 | Q37: 368757.3074 | R37: 368757.3074
A38: 0.26 | B38: -119.0178283 | C38: 466.2439176 | D38: 292.7830349 | E38: -1825.654094 | F38: -3.917429215 | G38: -6.235518714 | H38: -0.2552694497 | I38: -0.1603715819 | J38: 0.3947860224 | K38: 0.26 | L38: -3.917429215 | M38: -6.235518714 | N38: 2.318089498 | O38: 3.846153846 | P38: -0.01022100463 | Q38: 368754.3795 | R38: 368754.3795
A39: 0.27 | B39: -114.3553891 | C39: 401.524465 | D39: 274.526494 | E39: -1619.830863 | F39: -3.51119845 | G39: -5.900453685 | H39: -0.2848030421 | I39: -0.1694784932 | J39: 0.3947860224 | K39: 0.27 | L39: -3.51119845 | M39: -5.900453685 | N39: 2.389255235 | O39: 3.703703704 | P39: -0.01022100463 | Q39: 368751.6343 | R39: 368751.6343
A40: 0.28 | B40: -110.3401445 | C40: 345.6491776 | D40: 258.3281854 | E40: -1442.134179 | F40: -3.132578622 | G40: -5.582566134 | H40: -0.3192258266 | I40: -0.1791290915 | J40: 0.3947860224 | K40: 0.28 | L40: -3.132578622 | M40: -5.582566134 | N40: 2.449987512 | O40: 3.571428571 | P40: -0.01022100463 | Q40: 368749.051 | R40: 368749.051
A41: 0.29 | B41: -106.8836527 | C41: 297.1574104 | D41: 243.9068436 | E41: -1287.918842 | F41: -2.780195128 | G41: -5.280371897 | H41: -0.3596869839 | I41: -0.1893806004 | J41: 0.3947860224 | K41: 0.29 | L41: -2.780195128 | M41: -5.280371897 | N41: 2.50017677 | O41: 3.448275862 | P41: -0.01022100463 | Q41: 368746.6119 | R41: 368746.6119
A42: 0.3 | B42: -103.9120786 | C42: 254.8687057 | D42: 231.0276552 | E42: -1153.430718 | F42: -2.452734169 | G42: -4.99260886 | H42: -0.407708268 | I42: -0.2002960833 | J42: 0.3947860224 | K42: 0.3 | L42: -2.452734169 | M42: -4.99260886 | N42: 2.53987469 | O42: 3.333333333 | P42: -0.01022100463 | Q42: 368744.3016 | R42: 368744.3016
A43: 0.31 | B43: -101.3633915 | C43: 217.8220384 | D43: 219.493348 | E43: -1035.613517 | F43: -2.148922161 | G43: -4.718200013 | H43: -0.4653495683 | I43: -0.2119452328 | J43: 0.3947860224 | K43: 0.31 | L43: -2.148922161 | M43: -4.718200013 | N43: 2.569277852 | O43: 3.225806452 | P43: -0.01022100463 | Q43: 368742.1067 | R43: 368742.1067
A44: 0.32 | B44: -99.18517113 | C44: 185.2296624 | D44: 209.1372128 | E44: -931.9620211 | F44: -1.867513665 | G44: -4.456222824 | H44: -0.5354713162 | I44: -0.2244052956 | J44: 0.3947860224 | K44: 0.32 | L44: -1.867513665 | M44: -4.456222824 | N44: 2.588709159 | O44: 3.125 | P44: -0.01022100463 | Q44: 368740.0153 | R44: 368740.0153
A45: 0.33 | B45: -97.33287451 | C45: 156.4417274 | D45: 199.8175926 | E45: -840.4095506 | F45: -1.607285598 | G45: -4.205883674 | H45: -0.6221669636 | I45: -0.2377621631 | J45: 0.3947860224 | K45: 0.33 | L45: -1.607285598 | M45: -4.205883674 | N45: 2.598598077 | O45: 3.03030303 | P45: -0.01022100463 | Q45: 368738.0171 | R45: 368738.0171
A46: 0.34 | B46: -95.76845723 | C46: 130.9189175 | D46: 191.4134971 | E46: -759.2409534 | F46: -1.367035883 | G46: -3.966496433 | H46: -0.7315096938 | I46: -0.25211166 | J46: 0.3947860224 | K46: 0.34 | L46: -1.367035883 | M46: -3.966496433 | N46: 2.59946055 | O46: 2.941176471 | P46: -0.01022100463 | Q46: 368736.103 | R46: 368736.103
A47: 0.35 | B47: -94.45926806 | C47: 108.2111234 | D47: 183.8210876 | E47: -687.024775 | F47: -1.145585029 | G47: -3.737464423 | H47: -0.8729164353 | I47: -0.2675610753 | J47: 0.3947860224 | K47: 0.35 | L47: -1.145585029 | M47: -3.737464423 | N47: 2.591879394 | O47: 2.857142857 | P47: -0.01022100463 | Q47: 368734.2648 | R47: 368734.2648
A48: 0.36 | B48: -93.37715682 | C48: 87.94069092 | D48: 176.9508398 | E48: -622.5599857 | F48: -0.9417794878 | G48: -3.518265222 | H48: -1.061819686 | I48: -0.284230988 | J48: 0.3947860224 | K48: 0.36 | L48: -0.9417794878 | M48: -3.518265222 | N48: 2.576485734 | O48: 2.777777778 | P48: -0.01022100463 | Q48: 368732.4953 | R48: 368732.4953
A49: 0.37 | B49: -92.49774991 | C49: 69.78917065 | D49: 170.72524 | E49: -564.8338402 | F49: -0.7544958739 | G49: -3.308437817 | H49: -1.325388295 | I49: -0.3022574566 | J49: 0.3947860224 | K49: 0.37 | L49: -0.7544958739 | M49: -3.308437817 | N49: 2.553941943 | O49: 2.702702703 | P49: -0.01022100463 | Q49: 368730.788 | R49: 368730.788
A50: 0.38 | B50: -91.79985821 | C50: 53.48676575 | D50: 165.0769016 | E50: -512.9883208 | F50: -0.582645407 | G50: -3.10757178 | H50: -1.716309762 | I50: -0.3217946586 | J50: 0.3947860224 | K50: 0.38 | L50: -0.582645407 | M50: -3.10757178 | N50: 2.524926373 | O50: 2.631578947 | P50: -0.01022100463 | Q50: 368729.1373 | R50: 368729.1373
A51: 0.39 | B51: -91.26499055 | C51: 38.80387608 | D51: 159.9470183 | E51: -466.2932445 | F51: -0.4251781087 | G51: -2.915298136 | H51: -2.35195552 | I51: -0.3430180905 | J51: 0.3947860224 | K51: 0.39 | L51: -0.4251781087 | M51: -2.915298136 | N51: 2.490120027 | O51: 2.564102564 | P51: -0.01022100463 | Q51: 368727.5378 | R51: 368727.5378
A52: 0.4 | B52: -90.87695179 | C52: 25.5442809 | D52: 155.2840859 | E52: -424.1245827 | F52: -0.2810864625 | G52: -2.731281703 | H52: -3.557624196 | I52: -0.3661284732 | J52: 0.3947860224 | K52: 0.4 | L52: -0.2810864625 | M52: -2.731281703 | N52: 2.450195241 | O52: 2.5 | P52: -0.01022100463 | Q52: 368725.985 | R52: 368725.985
A53: 0.41 | B53: -90.62150898 | C53: 13.53961169 | D53: 151.0428401 | E53: -385.9468835 | F53: -0.1494083672 | G53: -2.555214688 | H53: -6.693065581 | I53: -0.3913565481 | J53: 0.3947860224 | K53: 0.41 | L53: -0.1494083672 | M53: -2.555214688 | N53: 2.405806321 | O53: 2.43902439 | P53: -0.01022100463 | Q53: 368724.4745 | R53: 368724.4745
A54: 0.42 | B54: -90.48611286 | C54: 2.64484667 | D54: 147.1833712 | E54: -351.2989432 | F54: -0.02922931029 | G54: -2.386811365 | H54: -34.21223389 | I54: -0.4189690123 | J54: 0.3947860224 | K54: 0.42 | L54: -0.02922931029 | M54: -2.386811365 | N54: 2.357582055 | O54: 2.380952381 | P54: -0.01022100463 | Q54: 368723.0027 | R54: 368723.0027
A55: 0.43 | B55: -90.4596644 | C55: -7.265380603 | D55: 143.6703818 | E55: -319.7820668 | F55: 0.08031624538 | G55: -2.225803696 | H55: 12.45078122 | I55: -0.4492759186 | J55: 0.3947860224 | K55: 0.43 | L55: 0.08031624538 | M55: -2.225803696 | N55: 2.306119941 | O55: 2.325581395 | P55: -0.01022100463 | Q55: 368721.566 | R55: 368721.566
A56: 0.44 | B56: -90.5323182 | C56: -16.29982035 | D56: 140.4725611 | E56: -291.0504027 | F56: 0.1800442171 | G56: -2.071937753 | H56: 5.554191167 | I56: -0.482639982 | J56: 0.3947860224 | K56: 0.44 | L56: 0.1800442171 | M56: -2.071937753 | N56: 2.25198197 | O56: 2.272727273 | P56: -0.01022100463 | Q56: 368720.1613 | R56: 368720.1613
A57: 0.45 | B57: -90.69531641 | C57: -24.5531203 | D57: 137.5620571 | E57: -264.8029487 | F57: 0.2707209288 | G57: -1.924970841 | H57: 3.693840755 | I57: -0.5194883885 | J57: 0.3947860224 | K57: 0.45 | L57: 0.2707209288 | M57: -1.924970841 | N57: 2.19569177 | O57: 2.222222222 | P57: -0.01022100463 | Q57: 368718.7856 | R57: 368718.7856
A58: 0.46 | B58: -90.94084761 | C58: -32.107914 | D58: 134.9140276 | E58: -240.7769105 | F58: 0.3530637205 | G58: -1.784669205 | H58: 2.832349918 | I58: -0.5603279291 | J58: 0.3947860224 | K58: 0.46 | L58: 0.3530637205 | M58: -1.784669205 | N58: 2.137732926 | O58: 2.173913043 | P58: -0.01022100463 | Q58: 368717.4365 | R58: 368717.4365
A59: 0.47 | B59: -91.26192675 | C59: -39.03656313 | D59: 132.5062585 | E59: -218.7421607 | F59: 0.4277420444 | G59: -1.650806258 | H59: 2.337857625 | I59: -0.6057646047 | J59: 0.3947860224 | K59: 0.47 | L59: 0.4277420444 | M59: -1.650806258 | N59: 2.078548302 | O59: 2.127659574 | P59: -0.01022100463 | Q59: 368716.1114 | R59: 368716.1114
A60: 0.48 | B60: -91.65229238 | C60: -45.40261677 | D60: 130.3188369 | E60: -198.4965982 | F60: 0.4953789544 | G60: -1.523161217 | H60: 2.018656608 | I60: -0.6565293214 | J60: 0.3947860224 | K60: 0.48 | L60: 0.4953789544 | M60: -1.523161217 | N60: 2.018540171 | O60: 2.083333333 | P60: -0.01022100463 | Q60: 368714.8083 | R60: 368714.8083
A61: 0.49 | B61: -92.10631855 | C61: -51.26203865 | D61: 128.3338709 | E61: -179.862245 | F61: 0.5565528994 | G61: -1.401518116 | H61: 1.796774396 | I61: -0.7135120042 | J61: 0.3947860224 | K61: 0.49 | L61: 0.5565528994 | M61: -1.401518116 | N61: 1.958071016 | O61: 2.040816327 | P61: -0.01022100463 | Q61: 368713.5249 | R61: 368713.5249
A62: 0.5 | B62: -92.61893894 | C62: -56.66424273 | D62: 126.5352485 | E62: -162.681953 | F62: 0.6117997396 | G62: -1.285665101 | H62: 1.634521781 | I62: -0.7778075326 | J62: 0.3947860224 | K62: 0.5 | L62: 0.6117997396 | M62: -1.285665101 | N62: 1.897464841 | O62: 2 | P62: -0.01022100463 | Q62: 368712.2596 | R62: 368712.2596
A63: 0.51 | B63: -93.18558136 | C63: -61.65297042 | D63: 124.908429 | E63: -146.8166142 | F63: 0.6616149142 | G63: -1.17539397 | H63: 1.511453231 | I63: -0.8507785694 | J63: 0.3947860224 | K63: 0.51 | L63: 0.6616149142 | M63: -1.17539397 | N63: 1.837008884 | O63: 1.960784314 | P63: -0.01022100463 | Q63: 368711.0105 | R63: 368711.0105
A64: 0.52 | B64: -93.80211107 | C64: -66.26703599 | D64: 123.4402628 | E64: -132.1427898 | F64: 0.7064556995 | G64: -1.070499907 | H64: 1.415516926 | I64: -0.9341430054 | J64: 0.3947860224 | K64: 0.52 | L64: 0.7064556995 | M64: -1.070499907 | N64: 1.776955606 | O64: 1.923076923 | P64: -0.01022100463 | Q64: 368709.7761 | R64: 368709.7761
A65: 0.53 | B65: -94.46478143 | C65: -70.54096211 | D65: 122.1188349 | E65: -118.5506897 | F65: 0.7467435063 | G65: -0.9707813686 | H65: 1.339147902 | I65: -1.030098055 | J65: 0.3947860224 | K65: 0.53 | L65: 0.7467435063 | M65: -0.9707813686 | N65: 1.717524875 | O65: 1.886792453 | P65: -0.01022100463 | Q65: 368708.5549 | R65: 368708.5549
A66: 0.54 | B66: -95.17019105 | C66: -74.50552342 | D66: 120.933328 | E66: -105.9424431 | F66: 0.7828661748 | G66: -0.8760400865 | H66: 1.277357526 | I66: -1.141500275 | J66: 0.3947860224 | K66: 0.54 | L66: 0.7828661748 | M66: -0.8760400865 | N66: 1.658906261 | O66: 1.851851852 | P66: -0.01022100463 | Q66: 368707.3456 | R66: 368707.3456
A67: 0.55 | B67: -95.91524628 | C67: -78.18821281 | D67: 119.8739036 | E67: -94.23061623 | F67: 0.815180233 | G67: -0.786081152 | H67: 1.226722582 | I67: -1.272133287 | J67: 0.3947860224 | K67: 0.55 | L67: 0.815180233 | M67: -0.786081152 | N67: 1.601261385 | O67: 1.818181818 | P67: -0.01022100463 | Q67: 368706.1468 | R67: 368706.1468
A68: 0.56 | B68: -96.69712841 | C68: -81.61364257 | D68: 118.9315974 | E68: -83.33693608 | F68: 0.8440130944 | G68: -0.7007131652 | H68: 1.184815741 | I68: -1.427117471 | J68: 0.3947860224 | K68: 0.56 | L68: 0.8440130944 | M68: -0.7007131652 | N68: 1.54472626 | O68: 1.785714286 | P68: -0.01022100463 | Q68: 368704.9575 | R68: 368704.9575
A69: 0.57 | B69: -97.51326484 | C69: -84.80389041 | D69: 118.0982281 | E69: -73.19119025 | F69: 0.8696651738 | G69: -0.61974842 | H69: 1.149867823 | I69: -1.613557966 | J69: 0.3947860224 | K69: 0.57 | L69: 0.8696651738 | M69: -0.61974842 | N69: 1.489413594 | O69: 1.754385965 | P69: -0.01022100463 | Q69: 368703.7765 | R69: 368703.7765
A70: 0.58 | B70: -98.36130374 | C70: -87.7787989 | D70: 117.3663162 | E70: -63.73027472 | F70: 0.8924119096 | G70: -0.5430031103 | H70: 1.120558779 | I70: -1.841610077 | J70: 0.3947860224 | K70: 0.58 | L70: 0.8924119096 | M70: -0.5430031103 | N70: 1.43541502 | O70: 1.724137931 | P70: -0.01022100463 | Q70: 368702.6029 | R70: 368702.6029
A71: 0.59 | B71: -99.23909173 | C71: -90.55623501 | D71: 116.7290134 | E71: -54.89736824 | F71: 0.9125056813 | G71: -0.4702975433 | H71: 1.095883588 | I71: -2.126313467 | J71: 0.3947860224 | K71: 0.59 | L71: 0.9125056813 | M71: -0.4702975433 | N71: 1.382803225 | O71: 1.694915254 | P71: -0.01022100463 | Q71: 368701.4356 | R71: 368701.4356
A72: 0.6 | B72: -100.1446541 | C72: -93.15231589 | D72: 116.1800397 | E72: -46.64121448 | F72: 0.930177619 | G72: -0.4014563481 | H72: 1.075063493 | I72: -2.490930844 | J72: 0.3947860224 | K72: 0.6 | L72: 0.930177619 | M72: -0.4014563481 | N72: 1.331633967 | O72: 1.666666667 | P72: -0.01022100463 | Q72: 368700.2738 | R72: 368700.2738
A73: 0.61 | B73: -101.0761772 | C73: -95.58160555 | D73: 115.7136276 | E73: -38.9154964 | F73: 0.9456393006 | G73: -0.3363086718 | H73: 1.05748566 | I73: -2.973458861 | J73: 0.3947860224 | K73: 0.61 | L73: 0.9456393006 | M73: -0.3363086718 | N73: 1.281947972 | O73: 1.639344262 | P73: -0.01022100463 | Q73: 368699.1166 | R73: 368699.1166
A74: 0.62 | B74: -102.0319933 | C74: -97.85728673 | D74: 115.3244726 | E74: -31.67828977 | F74: 0.9590843379 | G74: -0.2746883558 | H74: 1.042661172 | I74: -3.640489227 | J74: 0.3947860224 | K74: 0.62 | L74: 0.9590843379 | M74: -0.2746883558 | N74: 1.233772694 | O74: 1.612903226 | P74: -0.01022100463 | Q74: 368697.9634 | R74: 368697.9634
A75: 0.63 | B75: -103.0105662 | C75: -99.99131135 | D75: 115.0076897 | E75: -24.89158466 | F75: 0.9706898532 | G75: -0.2164340899 | H75: 1.030195172 | I75: -4.620344237 | J75: 0.3947860224 | K75: 0.63 | L75: 0.9706898532 | M75: -0.2164340899 | N75: 1.187123943 | O75: 1.587301587 | P75: -0.01022100463 | Q75: 368696.8133 | R75: 368696.8133
A76: 0.64 | B76: -104.0104793 | C76: -101.9945325 | D76: 114.7587739 | E76: -18.52086562 | F76: 0.9806178494 | G76: -0.1613895391 | H76: 1.019765244 | I76: -6.196188462 | J76: 0.3947860224 | K76: 0.64 | L76: 0.9806178494 | M76: -0.1613895391 | N76: 1.142007389 | O76: 1.5625 | P76: -0.01022100463 | Q76: 368695.6657 | R76: 368695.6657
A77: 0.65 | B77: -105.0304246 | C77: -103.8768206 | D77: 114.5735652 | E77: -12.53474255 | F77: 0.9890164774 | G77: -0.1094034434 | H77: 1.0111055 | I77: -9.140480128 | J77: 0.3947860224 | K77: 0.65 | L77: 0.9890164774 | M77: =+G77 -> -0.1094034434 | N77: 1.098419921 | O77: 1.538461538 | P77: -0.01022100463 | Q77: 368694.52 | R77: 368694.52
A78: =+A77+$B$1 -> 0.66 | B78: -106.0691928 | C78: -105.6471654 | D78: 114.4482178 | E78: -6.904625426 | F78: =+C78/B78 -> 0.9960212068 | G78: =+E78/D78 -> -0.06032968935 | H78: =+B78/C78 -> 1.003994687 | I78: =+D78/E78 -> -16.57558676 | J78: 0.3947860224 | K78: =+A78 -> 0.66 | L78: =+F78 -> 0.9960212068 | M78: -0.06032968935 | N78: =+L78-M78 -> 1.056350896 | O78: =1/K78 -> 1.515151515 | P78: -0.01022100463 | Q78: 368693.3755 | R78: 368693.3755
A79: 0.67 | B79: -107.1256645 | C79: -107.3137668 | D79: 114.3791715 | E79: -1.604437176 | F79: 1.001755904 | G79: -0.01402735441 | H79: 0.998247174 | I79: -71.28928027 | J79: 0.3947860224 | K79: 0.67 | L79: 1.001755904 | M79: -0.01402735441 | N79: 1.015783258 | O79: 1.492537313 | P79: -0.01022100463 | Q79: 368692.2317 | R79: 368692.2317
A80: 0.68 | B80: -108.1988021 | C80: -108.8841141 | D80: 114.3631272 | E80: 3.389640266 | F80: 1.006333823 | G80: 0.02963927578 | H80: 0.9937060422 | I80: 33.739016 | J80: 0.3947860224 | K80: 0.68 | L80: 1.006333823 | M80: 0.02963927578 | N80: 0.9766945468 | O80: 1.470588235 | P80: -0.01022100463 | Q80: 368691.0881 | R80: 368691.0881
A81: 0.69 | B81: -109.2876433 | C81: -110.3650572 | D81: 114.3970236 | E81: 8.09939103 | F81: 1.009858516 | G81: 0.07080071471 | H81: 0.9902377256 | I81: 14.1241512 | J81: 0.3947860224 | K81: 0.69 | L81: 1.009858516 | M81: 0.07080071471 | N81: 0.9390578012 | O81: 1.449275362 | P81: -0.01022100463 | Q81: 368689.9441 | R81: 368689.9441
A82: 0.7 | B82: -110.3912938 | C82: -111.7628692 | D82: 114.4780175 | E82: 12.54476509 | F82: 1.01242467 | G82: 0.1095823056 | H82: 0.9877278082 | I82: 9.125560872 | J82: 0.3947860224 | K82: 0.7 | L82: 1.01242467 | M82: 0.1095823056 | N82: 0.9028423642 | O82: 1.428571429 | P82: -0.01022100463 | Q82: 368688.7993 | R82: 368688.7993
A83: 0.71 | B83: -111.5089225 | C83: -113.0833023 | D83: 114.6034651 | E83: 16.74405595 | F83: 1.014118868 | G83: 0.1461042729 | H83: 0.986077699 | I83: 6.844426791 | J83: 0.3947860224 | K83: 0.71 | L83: 1.014118868 | M83: 0.1461042729 | N83: 0.8680145952 | O83: 1.408450704 | P83: -0.01022100463 | Q83: 368687.6533 | R83: 368687.6533
A84: 0.72 | B84: -112.6397556 | C84: -114.3316377 | D84: 114.7709057 | E84: 20.71405888 | F84: 1.015020293 | G84: 0.1804817933 | H84: 0.9852019778 | I84: 5.540725087 | J84: 0.3947860224 | K84: 0.72 | L84: 1.015020293 | M84: 0.1804817933 | N84: 0.8345384996 | O84: 1.388888889 | P84: -0.01022100463 | Q84: 368686.5056 | R84: 368686.5056
A85: 0.73 | B85: -113.7830719 | C85: -115.5127297 | D85: 114.9780463 | E85: 24.47021218 | F85: 1.015201363 | G85: 0.2128250824 | H85: 0.985026258 | I85: 4.698694292 | J85: 0.3947860224 | K85: 0.73 | L85: 1.015201363 | M85: 0.2128250824 | N85: 0.8023762808 | O85: 1.369863014 | P85: -0.01022100463 | Q85: 368685.3558 | R85: 368685.3558
A86: 0.74 | B86: -114.9381992 | C86: -116.631046 | D86: 115.2227484 | E86: 28.02672336 | F86: 1.014728321 | G86: 0.2432394969 | H86: 0.9854854535 | I86: 4.111174429 | J86: 0.3947860224 | K86: 0.74 | L86: 1.014728321 | M86: 0.2432394969 | N86: 0.7714888244 | O86: 1.351351351 | P86: -0.01022100463 | Q86: 368684.2036 | R86: 368684.2036
A87: 0.75 | B87: -116.1045097 | C87: -117.6907023 | D87: 115.5030156 | E87: 31.39668212 | F87: 1.013661766 | G87: 0.2718256484 | H87: 0.9865223627 | I87: 3.678828712 | J87: 0.3947860224 | K87: 0.75 | L87: 1.013661766 | M87: 0.2718256484 | N87: 0.7418361172 | O87: 1.333333333 | P87: -0.01022100463 | Q87: 368683.0485 | R87: 368683.0485
A88: 0.76 | B88: -117.2814167 | C88: -118.695495 | D88: 115.8169825 | E88: 34.59216163 | F88: 1.012057139 | G88: 0.2986795278 | H88: 0.9880865041 | I88: 3.348070112 | J88: 0.3947860224 | K88: 0.76 | L88: 1.012057139 | M88: 0.2986795278 | N88: 0.7133776108 | O88: 1.315789474 | P88: -0.01022100463 | Q88: 368681.8904 | R88: 368681.8904
A89: 0.77 | B89: -118.4683717 | C89: -119.6489294 | D89: 116.1629041 | E89: 37.62430944 | F89: 1.009965172 | G89: 0.3238926381 | H89: 0.9901331525 | I89: 3.087442821 | J89: 0.3947860224 | K89: 0.77 | L89: 1.009965172 | M89: 0.3238926381 | N89: 0.6860725343 | O89: 1.298701299 | P89: -0.01022100463 | Q89: 368680.7287 | R89: 368680.7287
A90: 0.78 | B90: -119.664861 | C90: -120.5542454 | D90: 116.5391472 | E90: 40.50342925 | F90: 1.007432294 | G90: 0.3475521336 | H90: 0.9926225375 | I90: 2.87726618 | J90: 0.3947860224 | K90: 0.78 | L90: 1.007432294 | M90: 0.3475521336 | N90: 0.6598801603 | O90: 1.282051282 | P90: -0.01022100463 | Q90: 368679.5634 | R90: 368679.5634
A91: 0.79 | B91: -120.8704034 | C91: -121.4144406 | D91: 116.9441815 | E91: 43.23905446 | F91: 1.004500996 | G91: 0.3697409646 | H91: 0.995519172 | I91: 2.704596178 | J91: 0.3947860224 | K91: 0.79 | L91: 1.004500996 | M91: 0.3697409646 | N91: 0.6347600315 | O91: 1.265822785 | P91: -0.01022100463 | Q91: 368678.3939 | R91: 368678.3939
A92: 0.8 | B92: -122.0845478 | C92: -122.2322915 | D92: 117.376572 | E92: 45.84001458 | F92: 1.001210175 | G92: 0.3905380247 | H92: 0.9987912873 | I92: 2.560570128 | J92: 0.3947860224 | K92: 0.8 | L92: 1.001210175 | M92: 0.3905380247 | N92: 0.6106721507 | O92: 1.25 | P92: -0.01022100463 | Q92: 368677.2202 | R92: 368677.2202
A93: 0.81 | B93: -123.3068707 | C93: -123.010372 | D93: 117.8349721 | E93: 48.31449508 | F93: 0.9975954399 | G93: 0.410018301 | H93: 1.002410356 | I93: 2.438915525 | J93: 0.3947860224 | K93: 0.81 | L93: 0.9975954399 | M93: 0.410018301 | N93: 0.5875771389 | O93: 1.234567901 | P93: -0.01022100463 | Q93: 368676.0418 | R93: 368676.0418
A94: 0.82 | B94: -124.5369745 | C94: -123.7510702 | D94: 118.3181171 | E94: 50.67009158 | F94: 0.9936893906 | G94: 0.4282530251 | H94: 1.006350686 | I94: 2.335068152 | J94: 0.3947860224 | K94: 0.82 | L94: 0.9936893906 | M94: 0.4282530251 | N94: 0.5654363654 | O94: 1.219512195 | P94: -0.01022100463 | Q94: 368674.8586 | R94: 368674.8586
A95: 0.83 | B95: -125.7744852 | C95: -124.4566047 | D95: 118.824818 | E95: 52.91385879 | F95: 0.9895218778 | G95: 0.4453098239 | H95: 1.010589076 | I95: 2.24562753 | J95: 0.3947860224 | K95: 0.83 | L95: 0.9895218778 | M95: 0.4453098239 | N95: 0.5442120538 | O95: 1.204819277 | P95: -0.01022100463 | Q95: 368673.6704 | R95: 368673.6704
A96: 0.84 | B96: -127.0190512 | C96: -125.1290376 | D96: 119.3539566 | E96: 55.052355 | F96: 0.9851202352 | G96: 0.4612528698 | H96: 1.015104516 | I96: 2.168008191 | J96: 0.3947860224 | K96: 0.84 | L96: 0.9851202352 | M96: 0.4612528698 | N96: 0.5238673654 | O96: 1.19047619 | P96: -0.01022100463 | Q96: 368672.4768 | R96: 368672.4768
A97: 0.85 | B97: -128.2703416 | C97: -125.7702876 | D97: 119.9044802 | E97: 57.0916823 | F97: 0.980509493 | G97: 0.4761430284 | H97: 1.019877938 | I97: 2.100209266 | J97: 0.3947860224 | K97: 0.85 | L97: 0.980509493 | M97: 0.4761430284 | N97: 0.5043664647 | O97: 1.176470588 | P97: -0.01022100463 | Q97: 368671.2778 | R97: 368671.2778
A98: 0.86 | B98: -129.5280445 | C98: -126.3821415 | D98: 120.475397 | E98: 59.03752319 | F98: 0.9757125731 | G98: 0.490038005 | H98: 1.024891989 | I98: 2.04065805 | J98: 0.3947860224 | K98: 0.86 | L98: 0.9757125731 | M98: 0.490038005 | N98: 0.4856745681 | O98: 1.162790698 | P98: -0.01022100463 | Q98: 368670.073 | R98: 368670.073
A99: 0.87 | B99: -130.7918659 | C99: -126.9662648 | D99: 121.0657722 | E99: 60.89517389 | F99: 0.9707504665 | G99: 0.5029924873 | H99: 1.030130847 | I99: 1.988101265 | J99: 0.3947860224 | K99: 0.87 | L99: 0.9707504665 | M99: 0.5029924873 | N99: 0.4677579792 | O99: 1.149425287 | P99: -0.01022100463 | Q99: 368668.8624 | R99: 368668.8624
A100: 0.88 | B100: -132.0615285 | C100: -127.5242108 | D100: 121.6747239 | E100: 62.66957457 | F100: 0.9656423957 | G100: 0.5150582844 | H100: 1.03558005 | I100: 1.941527843 | J100: 0.3947860224 | K100: 0.88 | L100: 0.9656423957 | M100: 0.5150582844 | N100: 0.4505841113 | O100: 1.136363636 | P100: -0.01022100463 | Q100: 368667.6456 | R100: 368667.6456
A101: 0.89 | B101: -133.3367706 | C101: -128.0574296 | D101: 122.3014197 | E101: 64.36533705 | F101: 0.960405963 | G101: 0.5262844635 | H101: 1.041226355 | I101: 1.900113093 | J101: 0.3947860224 | K101: 0.89 | L101: 0.960405963 | M101: 0.5262844635 | N101: 0.4341214995 | O101: 1.123595506 | P101: -0.01022100463 | Q101: 368666.4226 | R101: 368666.4226
A102: 0.9 | B102: -134.6173449 | C102: -128.5672761 | D102: 122.9450731 | E102: 65.9867699 | F102: 0.9550572858 | G102: 0.5367174808 | H102: 1.047057611 | I102: 1.863177623 | J102: 0.3947860224 | K102: 0.9 | L102: 0.9550572858 | M102: 0.5367174808 | N102: 0.4183398049 | O102: 1.111111111 | P102: -0.01022100463 | Q102: 368665.1932 | R102: 368665.1932
A103: 0.91 | B103: -135.9030177 | C103: -129.0550169 | D103: 123.6049408 | E103: 67.53790149 | F103: 0.9496111202 | G103: 0.5464013094 | H103: 1.053062647 | I103: 1.830156668 | J103: 0.3947860224 | K103: 0.91 | L103: 0.9496111202 | M103: 0.5464013094 | N103: 0.4032098108 | O103: 1.098901099 | P103: -0.01022100463 | Q103: 368663.9571 | R103: 368663.9571
A104: 0.92 | B104: -137.1935679 | C104: -129.5218372 | D104: 124.2803198 | E104: 69.02250102 | F104: 0.9440809742 | G104: 0.5553775622 | H104: 1.059231175 | I104: 1.800576883 | J104: 0.3947860224 | K104: 0.92 | L104: 0.9440809742 | M104: 0.5553775622 | N104: 0.3887034121 | O104: 1.086956522 | P104: -0.01022100463 | Q104: 368662.7143 | R104: 368662.7143
A105: 0.93 | B105: -138.4887862 | C105: -129.9688468 | D105: 124.9705448 | E105: 70.44409778 | F105: 0.9384792109 | G105: 0.5636856101 | H105: 1.065553705 | I105: 1.774038546 | J105: 0.3947860224 | K105: 0.93 | L105: 0.9384792109 | M105: 0.5636856101 | N105: 0.3747936008 | O105: 1.075268817 | P105: -0.01022100463 | Q105: 368661.4646 | R105: 368661.4646
A106: 0.94 | B106: -139.7884747 | C106: -130.3970856 | D106: 125.6749858 | E106: 71.80599874 | F106: 0.9328171429 | G106: 0.5713626964 | H106: 1.072021465 | I106: 1.750201765 | J106: 0.3947860224 | K106: 0.94 | L106: 0.9328171429 | M106: 0.5713626964 | N106: 0.3614544465 | O106: 1.063829787 | P106: -0.01022100463 | Q106: 368660.2079 | R106: 368660.2079
A107: 0.95 | B107: -141.0924455 | C107: -130.8075285 | D107: 126.3930458 | E107: 73.11130475 | F107: 0.9271051189 | G107: 0.5784440458 | H107: 1.078626339 | I107: 1.728775682 | J107: 0.3947860224 | K107: 0.95 | L107: 0.9271051189 | M107: 0.5784440458 | N107: 0.3486610731 | O107: 1.052631579 | P107: -0.01022100463 | Q107: 368658.9439 | R107: 368658.9439
A108: 0.96 | B108: -142.4005208 | C108: -131.2010905 | D108: 127.1241588 | E108: 74.36292535 | F108: 0.9213526027 | G108: 0.5849629689 | H108: 1.085360802 | I108: 1.709509923 | J108: 0.3947860224 | K108: 0.96 | L108: 0.9213526027 | M108: 0.5849629689 | N108: 0.3363896338 | O108: 1.041666667 | P108: -0.01022100463 | Q108: 368657.6727 | R108: 368657.6727
A109: 0.97 | B109: -143.7125317 | C109: -131.5786306 | D109: 127.8677881 | E109: 75.56359244 | F109: 0.9155682457 | G109: 0.5909509626 | H109: 1.092217871 | I109: 1.692187784 | J109: 0.3947860224 | K109: 0.97 | L109: 0.9155682457 | M109: 0.5909509626 | N109: 0.3246172831 | O109: 1.030927835 | P109: -0.01022100463 | Q109: 368656.394 | R109: 368656.394
A110: 0.98 | B110: -145.028318 | C110: -131.9409558 | D110: 128.623424 | E110: 76.71587275 | F110: 0.909759953 | G110: 0.5964378056 | H110: 1.099191052 | I110: 1.676620748 | J110: 0.3947860224 | K110: 0.98 | L110: 0.909759953 | M110: 0.5964378056 | N110: 0.3133221474 | O110: 1.020408163 | P110: -0.01022100463 | Q110: 368655.1078 | R110: 368655.1078
A111: 0.99 | B111: -146.3477276 | C111: -132.288825 | D111: 129.3905827 | E111: 77.82217943 | F111: 0.9039349444 | G111: 0.6014516498 | H111: 1.106274302 | I111: 1.662644039 | J111: 0.3947860224 | K111: 0.99 | L111: 0.9039349444 | M111: 0.6014516498 | N111: 0.3024832946 | O111: 1.01010101 | P111: -0.01022100463 | Q111: 368653.8139 | R111: 368653.8139
A112: 1 | B112: -147.6706159 | C112: -132.622952 | D112: 130.1688045 | E112: 78.88478263 | F112: 0.8980998098 | G112: 0.6060191067 | H112: 1.113461988 | I112: 1.65011299 | J112: 0.3947860224 | K112: 1 | L112: 0.8980998098 | M112: 0.6060191067 | N112: 0.292080703 | O112: 1 | P112: -0.01022100463 | Q112: 368652.5122 | R112: 368652.5122
A113: 1.01 | B113: -148.9968454 | C113: -132.9440087 | D113: 130.9576523 | E113: 79.90581929 | F113: 0.8922605603 | G113: 0.6101653311 | H113: 1.120748853 | I113: 1.638900064 | J113: 0.3947860224 | K113: 1.01 | L113: 0.8922605603 | M113: 0.6101653311 | N113: 0.2820952292 | O113: 0.9900990099 | P113: -0.01022100463 | Q113: 368651.2026 | R113: 368651.2026
A114: 1.02 | B114: -150.3262855 | C114: -133.2526281 | D114: 131.7567105 | E114: 80.88730219 | F114: 0.8864226752 | G114: 0.6139140987 | H114: 1.128129986 | I114: 1.628892384 | J114: 0.3947860224 | K114: 1.02 | L114: 0.8864226752 | M114: 0.6139140987 | N114: 0.2725085765 | O114: 0.9803921569 | P114: -0.01022100463 | Q114: 368649.885 | R114: 368649.885
A115: 1.03 | B115: -151.6588117 | C115: -133.5494066 | D115: 132.5655835 | E115: 81.83112827 | F115: 0.8805911445 | G115: 0.6172878818 | H115: 1.135600791 | I115: 1.619989683 | J115: 0.3947860224 | K115: 1.03 | L115: 0.8805911445 | M115: 0.6172878818 | N115: 0.2633032626 | O115: 0.9708737864 | P115: -0.01022100463 | Q115: 368648.5594 | R115: 368648.5594
A116: 1.04 | B116: -152.9943058 | C116: -133.8349067 | D116: 133.3838948 | E116: 82.73908634 | F116: 0.8747705085 | G116: 0.6203079199 | H116: 1.143156966 | I116: 1.612102583 | J116: 0.3947860224 | K116: 1.04 | L116: 0.8747705085 | M116: 0.6203079199 | N116: 0.2544625886 | O116: 0.9615384615 | P116: -0.01022100463 | Q116: 368647.2255 | R116: 368647.2255
A117: 1.05 | B117: -154.3326549 | C117: -134.1096591 | D117: 134.2112857 | E117: 83.61286421 | F117: 0.868964894 | G117: 0.6229942868 | H117: 1.150794476 | I117: 1.605151157 | J117: 0.3947860224 | K117: 1.05 | L117: 0.868964894 | M117: 0.6229942868 | N117: 0.2459706072 | O117: 0.9523809524 | P117: -0.01022100463 | Q117: 368645.8834 | R117: 368645.8834
A118: 1.06 | B118: -155.6737515 | C118: -134.3741648 | D118: 135.0474143 | E118: 84.45405525 | F118: 0.8631780473 | G118: 0.6253659551 | H118: 1.158509537 | I118: 1.599063703 | J118: 0.3947860224 | K118: 1.06 | L118: 0.8631780473 | M118: 0.6253659551 | N118: 0.2378120922 | O118: 0.9433962264 | P118: -0.01022100463 | Q118: 368644.533 | R118: 368644.533
A119: 1.07 | B119: -157.0174931 | C119: -134.6288971 | D119: 135.8919549 | E119: 85.26416455 | F119: 0.857413365 | G119: 0.6274408564 | H119: 1.166298592 | I119: 1.593775716 | J119: 0.3947860224 | K119: 1.07 | L119: 0.857413365 | M119: 0.6274408564 | N119: 0.2299725086 | O119: 0.9345794393 | P119: -0.01022100463 | Q119: 368643.174 | R119: 368643.174
A120: 1.08 | B120: -158.3637821 | C120: -134.8743033 | D120: 136.7445965 | E120: 86.04461453 | F120: 0.8516739216 | G120: 0.6292359385 | H120: 1.174158295 | I120: 1.589228998 | J120: 0.3947860224 | K120: 1.08 | L120: 0.8516739216 | M120: 0.6292359385 | N120: 0.2224379831 | O120: 0.9259259259 | P120: -0.01022100463 | Q120: 368641.8066 | R120: 368641.8066
A121: 1.09 | B121: -159.7125251 | C121: -135.1108063 | D121: 137.6050427 | E121: 86.7967502 | F121: 0.8459624955 | G121: 0.6307672198 | H121: 1.182085501 | I121: 1.585370908 | J121: 0.3947860224 | K121: 1.09 | L121: 0.8459624955 | M121: 0.6307672198 | N121: 0.2151952757 | O121: 0.9174311927 | P121: -0.01022100463 | Q121: 368640.4305 | R121: 368640.4305
A122: 1.1 | B122: -161.0636332 | C122: -135.3388062 | D122: 138.4730102 | E122: 87.52184405 | F122: 0.8402815927 | G122: 0.6320498409 | H122: 1.190077242 | I122: 1.582153709 | J122: 0.3947860224 | K122: 1.1 | L122: 0.8402815927 | M122: 0.6320498409 | N122: 0.2082317518 | O122: 0.9090909091 | P122: -0.01022100463 | Q122: 368639.0458 | R122: 368639.0458
A123: 1.11 | B123: -162.4170212 | C123: -135.5586818 | D123: 139.3482286 | E123: 88.22110055 | F123: 0.8346334685 | G123: 0.6330981127 | H123: 1.198130722 | I123: 1.579534009 | J123: 0.3947860224 | K123: 1.11 | L123: 0.8346334685 | M123: 0.6330981127 | N123: 0.2015353558 | O123: 0.9009009009 | P123: -0.01022100463 | Q123: 368637.6523 | R123: 368637.6523
A124: 1.12 | B124: -163.7726081 | C124: -135.7707917 | D124: 140.2304396 | E124: 88.89566035 | F124: 0.8290201473 | G124: 0.6339255627 | H124: 1.206243302 | I124: 1.577472276 | J124: 0.3947860224 | K124: 1.12 | L124: 0.8290201473 | M124: 0.6339255627 | N124: 0.1950945846 | O124: 0.8928571429 | P124: -0.01022100463 | Q124: 368636.25 | R124: 368636.25
A125: 1.13 | B125: -165.130316 | C125: -135.9754757 | D125: 141.1193962 | E125: 89.54660422 | F125: 0.8234434416 | G125: 0.6345449783 | H125: 1.21441249 | I125: 1.575932415 | J125: 0.3947860224 | K125: 1.13 | L125: 0.8234434416 | M125: 0.6345449783 | N125: 0.1888984633 | O125: 0.8849557522 | P125: -0.01022100463 | Q125: 368634.8388 | R125: 368634.8388
A126: 1.14 | B126: -166.4900707 | C126: -136.1730561 | D126: 142.0148623 | E126: 90.17495665 | F126: 0.8179049685 | G126: 0.6349684478 | H126: 1.222635928 | I126: 1.574881403 | J126: 0.3947860224 | K126: 1.14 | L126: 0.8179049685 | M126: 0.6349684478 | N126: 0.1829365207 | O126: 0.8771929825 | P126: -0.01022100463 | Q126: 368633.4187 | R126: 368633.4187
A127: 1.15 | B127: -167.8518013 | C127: -136.3638382 | D127: 142.9166118 | E127: 90.78168928 | F127: 0.8124061653 | G127: 0.635207399 | H127: 1.230911387 | I127: 1.574288967 | J127: 0.3947860224 | K127: 1.15 | L127: 0.8124061653 | M127: 0.635207399 | N127: 0.1771987663 | O127: 0.8695652174 | P127: -0.01022100463 | Q127: 368631.9895 | R127: 368631.9895
A128: 1.16 | B128: -169.2154397 | C128: -136.5481121 | D128: 143.8244287 | E128: 91.36772401 | F128: 0.8069483043 | G128: 0.6352726363 | H128: 1.239236757 | I128: 1.5741273 | J128: 0.3947860224 | K128: 1.16 | L128: 0.8069483043 | M128: 0.6352726363 | N128: 0.171675668 | O128: 0.8620689655 | P128: -0.01022100463 | Q128: 368630.5513 | R128: 368630.5513
A129: 1.17 | B129: -170.5809208 | C129: -136.7261529 | D129: 144.738106 | E129: 91.93393596 | F129: 0.8015325058 | G129: 0.6351743747 | H129: 1.247610038 | I129: 1.574370818 | J129: 0.3947860224 | K129: 1.17 | L129: 0.8015325058 | M129: 0.6351743747 | N129: 0.1663581311 | O129: 0.8547008547 | P129: -0.01022100463 | Q129: 368629.1039 | R129: 368629.1039
A130: 1.18 | B130: -171.9481823 | C130: -136.8982219 | D130: 145.6574453 | E130: 92.48115625 | F130: 0.7961597502 | G130: 0.6349222729 | H130: 1.256029333 | I130: 1.574995937 | J130: 0.3947860224 | K130: 1.18 | L130: 0.7961597502 | M130: 0.6349222729 | N130: 0.1612374774 | O130: 0.8474576271 | P130: -0.01022100463 | Q130: 368627.6473 | R130: 368627.6473
A131: 1.19 | B131: -173.3171645 | C131: -137.0645674 | D131: 146.5822569 | E131: 93.0101745 | F131: 0.7908308895 | G131: 0.6345254636 | H131: 1.264492843 | I131: 1.575980882 | J131: 0.3947860224 | K131: 1.19 | L131: 0.7908308895 | M131: 0.6345254636 | N131: 0.156305426 | O131: 0.8403361345 | P131: -0.01022100463 | Q131: 368626.1815 | R131: 368626.1815
A132: 1.2 | B132: -174.6878102 | C132: -137.2254255 | D132: 147.5123586 | E132: 93.52174129 | F132: 0.7855466577 | G132: 0.6339925831 | H132: 1.27299886 | I132: 1.577305518 | J132: 0.3947860224 | K132: 1.2 | L132: 0.7855466577 | M132: 0.6339925831 | N132: 0.1515540746 | O132: 0.8333333333 | P132: -0.01022100463 | Q132: 368624.7064 | R132: 368624.7064
A133: 1.21 | B133: -176.0600645 | C133: -137.3810205 | D133: 148.447576 | E133: 94.01657034 | F133: 0.78030768 | G133: 0.6333317986 | H133: 1.281545761 | I133: 1.578951195 | J133: 0.3947860224 | K133: 1.21 | L133: 0.78030768 | M133: 0.6333317986 | N133: 0.1469758814 | O133: 0.826446281 | P133: -0.01022100463 | Q133: 368623.2219 | R133: 368623.2219
A134: 1.22 | B134: -177.4338747 | C134: -137.5315659 | D134: 149.3877417 | E134: 94.49534064 | F134: 0.7751144823 | G134: 0.632550834 | H134: 1.290132004 | I134: 1.580900611 | J134: 0.3947860224 | K134: 1.22 | L134: 0.7751144823 | M134: 0.632550834 | N134: 0.1425636482 | O134: 0.8196721311 | P134: -0.01022100463 | Q134: 368621.728 | R134: 368621.728
A135: 1.23 | B135: -178.8091903 | C135: -137.677265 | D135: 150.3326952 | E135: 94.95869838 | F135: 0.7699674986 | G135: 0.6316569944 | H135: 1.298756119 | I135: 1.583137698 | J135: 0.3947860224 | K135: 1.23 | L135: 0.7699674986 | M135: 0.6316569944 | N135: 0.1383105042 | O135: 0.8130081301 | P135: -0.01022100463 | Q135: 368620.2247 | R135: 368620.2247
A136: 1.24 | B136: -180.185963 | C136: -137.8183112 | D136: 151.2822821 | E136: 95.40725881 | F136: 0.7648670792 | G136: 0.6306571891 | H136: 1.30741671 | I136: 1.585647508 | J136: 0.3947860224 | K136: 1.24 | L136: 0.7648670792 | M136: 0.6306571891 | N136: 0.1342098901 | O136: 0.8064516129 | P136: -0.01022100463 | Q136: 368618.7119 | R136: 368618.7119
A137: 1.25 | B137: -181.5641461 | C137: -137.9548888 | D137: 152.2363547 | E137: 95.84160794 | F137: 0.7598134971 | G137: 0.6295579535 | H137: 1.316112446 | I137: 1.588416117 | J137: 0.3947860224 | K137: 1.25 | L137: 0.7598134971 | M137: 0.6295579535 | N137: 0.1302555435 | O137: 0.8 | P137: -0.01022100463 | Q137: 368617.1895 | R137: 368617.1895
A138: 1.26 | B138: -182.943695 | C138: -138.0871733 | D138: 153.1947708 | E138: 96.26230414 | F138: 0.7548069548 | G138: 0.6283654699 | H138: 1.324842059 | I138: 1.591430542 | J138: 0.3947860224 | K138: 1.26 | L138: 0.7548069548 | M138: 0.6283654699 | N138: 0.1264414849 | O138: 0.7936507937 | P138: -0.01022100463 | Q138: 368615.6575 | R138: 368615.6575
A139: 1.27 | B139: -184.3245667 | C139: -138.2153321 | D139: 154.1573938 | E139: 96.66987967 | F139: 0.7498475901 | G139: 0.6270855861 | H139: 1.333604339 | I139: 1.594678657 | J139: 0.3947860224 | K139: 1.27 | L139: 0.7498475901 | M139: 0.6270855861 | N139: 0.122762004 | O139: 0.7874015748 | P139: -0.01022100463 | Q139: 368614.116 | R139: 368614.116
A140: 1.28 | B140: -185.70672 | C140: -138.3395249 | D140: 155.1240926 | E140: 97.06484207 | F140: 0.7449354814 | G140: 0.6257238345 | H140: 1.342398134 | I140: 1.598149127 | J140: 0.3947860224 | K140: 1.28 | L140: 0.7449354814 | M140: 0.6257238345 | N140: 0.1192116469 | O140: 0.78125 | P140: -0.01022100463 | Q140: 368612.5647 | R140: 368612.5647
A141: 1.29 | B141: -187.0901153 | C141: -138.4599038 | D141: 156.0947411 | E141: 97.44767552 | F141: 0.7400706529 | G141: 0.6242854491 | H141: 1.351222341 | I141: 1.601831344 | J141: 0.3947860224 | K141: 1.29 | L141: 0.7400706529 | M141: =+G141 -> 0.6242854491 | N141: 0.1157852038 | O141: 0.7751937984 | P141: -0.01022100463 | Q141: 368611.0038 | R141: 368611.0038
A142: =+A141+$B$1 -> 1.3 | B142: -188.4747143 | C142: -138.5766141 | D142: 157.0692178 | E142: 97.81884206 | F142: =+C142/B142 -> 0.7352530794 | G142: =+E142/D142 -> 0.6227753816 | H142: =+B142/C142 -> 1.360075909 | I142: =+D142/E142 -> 1.605715366 | J142: 0.3947860224 | K142: =+A142 -> 1.3 | L142: =+F142 -> 0.7352530794 | M142: 0.6227753816 | N142: =+L142-M142 -> 0.1124776978 | O142: =1/K142 -> 0.7692307692 | P142: -0.01022100463 | Q142: 368609.4331 | R142: 368609.4331
A143: 1.31 | B143: -189.8604805 | C143: -138.6897945 | D143: 158.0474062 | E143: 98.17878275 | F143: 0.7304826902 | G143: 0.6211983169 | H143: 1.368957832 | I143: 1.60979187 | J143: 0.3947860224 | K143: 1.31 | L143: 0.7304826902 | M143: 0.6211983169 | N143: 0.1092843733 | O143: 0.7633587786 | P143: -0.01022100463 | Q143: 368607.8526 | R143: 368607.8526
A144: 1.32 | B144: -191.2473784 | C144: -138.7995776 | D144: 159.0291941 | E144: 98.52791882 | F144: 0.7257593736 | G144: 0.6195586879 | H144: 1.37786715 | I144: 1.614052098 | J144: 0.3947860224 | K144: 1.32 | L144: 0.7257593736 | M144: 0.6195586879 | N144: 0.1062006856 | O144: 0.7575757576 | P144: -0.01022100463 | Q144: 368606.2623 | R144: 368606.2623
A145: 1.33 | B145: -192.6353742 | C145: -138.9060897 | D145: 160.0144733 | E145: 98.86665266 | F145: 0.72108298 | G145: 0.6178606888 | H145: 1.386802945 | I145: 1.618487821 | J145: 0.3947860224 | K145: 1.33 | L145: 0.72108298 | M145: 0.6178606888 | N145: 0.1032222912 | O145: 0.7518796992 | P145: -0.01022100463 | Q145: 368604.6622 | R145: 368604.6622
A146: 1.34 | B146: -194.0244351 | C146: -139.0094518 | D146: 161.0031398 | E146: 99.1953688 | F146: 0.7164533258 | G146: 0.6161082879 | H146: 1.395764335 | I146: 1.623091297 | J146: 0.3947860224 | K146: 1.34 | L146: 0.7164533258 | M146: 0.6161082879 | N146: 0.1003450379 | O146: 0.7462686567 | P146: -0.01022100463 | Q146: 368603.0522 | R146: 368603.0522
A147: 1.35 | B147: -195.4145296 | C147: -139.1097796 | D147: 161.9950935 | E147: 99.51443486 | F147: 0.7118701963 | G147: 0.6143052405 | H147: 1.40475048 | I147: 1.627855232 | J147: 0.3947860224 | K147: 1.35 | L147: 0.7118701963 | M147: 0.6143052405 | N147: 0.0975649558 | O147: 0.7407407407 | P147: -0.01022100463 | Q147: 368601.4322 | R147: 368601.4322
A148: 1.36 | B148: -196.8056274 | C148: -139.2071834 | D148: 162.9902378 | E148: 99.82420237 | F148: 0.7073333486 | G148: 0.6124550998 | H148: 1.413760573 | I148: 1.632772754 | J148: 0.3947860224 | K148: 1.36 | L148: 0.7073333486 | M148: 0.6124550998 | N148: 0.09487824877 | O148: 0.7352941176 | P148: -0.01022100463 | Q148: 368599.8023 | R148: 368599.8023
A149: 1.37 | B149: -198.1976992 | C149: -139.3017692 | D149: 163.9884798 | E149: 100.1250076 | F149: 0.7028425142 | G149: 0.6105612279 | H149: 1.422793841 | I149: 1.637837377 | J149: 0.3947860224 | K149: 1.37 | L149: 0.7028425142 | M149: 0.6105612279 | N149: 0.09228128621 | O149: 0.7299270073 | P149: -0.01022100463 | Q149: 368598.1624 | R149: 368598.1624
A150: 1.38 | B150: -199.5907169 | C150: -139.3936381 | D150: 164.9897299 | E150: 100.4171724 | F150: 0.6983974016 | G150: 0.6086268063 | H150: 1.431849543 | I150: 1.643042977 | J150: 0.3947860224 | K150: 1.38 | L150: 0.6983974016 | M150: 0.6086268063 | N150: 0.08977059525 | O150: 0.7246376812 | P150: -0.01022100463 | Q150: 368596.5125 | R150: 368596.5125
A151: 1.39 | B151: -200.9846533 | C151: -139.4828869 | D151: 165.9939016 | E151: 100.7010047 | F151: 0.6939976987 | G151: 0.6066548454 | H151: 1.440926968 | I151: 1.648383768 | J151: 0.3947860224 | K151: 1.39 | L151: 0.6939976987 | M151: 0.6066548454 | N151: 0.08734285332 | O151: 0.7194244604 | P151: -0.01022100463 | Q151: 368594.8526 | R151: 368594.8526
A152: 1.4 | B152: -202.3794822 | C152: -139.5696083 | D152: 167.0009117 | E152: 100.9767996 | F152: 0.6896430746 | G152: 0.6046481936 | H152: 1.450025436 | I152: 1.653854275 | J152: 0.3947860224 | K152: 1.4 | L152: 0.6896430746 | M152: 0.6046481936 | N152: 0.08499488108 | O152: 0.7142857143 | P152: -0.01022100463 | Q152: 368593.1826 | R152: 368593.1826
A153: 1.41 | B153: -203.7751783 | C153: -139.6538913 | D153: 168.0106797 | E153: 101.2448394 | F153: 0.6853331818 | G153: 0.6026095461 | H153: 1.459144291 | I153: 1.659449318 | J153: 0.3947860224 | K153: 1.41 | L153: 0.6853331818 | M153: 0.6026095461 | N153: 0.08272363578 | O153: 0.7092198582 | P153: -0.01022100463 | Q153: 368591.5025 | R153: 368591.5025
A154: 1.42 | B154: -205.1717172 | C154: -139.7358209 | D154: 169.0231281 | E154: 101.5053949 | F154: 0.6810676579 | G154: 0.600541453 | H154: 1.468282906 | I154: 1.665163986 | J154: 0.3947860224 | K154: 1.42 | L154: 0.6810676579 | M154: 0.600541453 | N154: 0.08052620482 | O154: 0.7042253521 | P154: -0.01022100463 | Q154: 368589.8122 | R154: 368589.8122
A155: 1.43 | B155: -206.5690754 | C155: -139.8154786 | D155: 170.038182 | E155: 101.7587255 | F155: 0.676846127 | G155: 0.5984463273 | H155: 1.477440677 | I155: 1.670993629 | J155: 0.3947860224 | K155: 1.43 | L155: 0.676846127 | M155: 0.5984463273 | N155: 0.07839979971 | O155: 0.6993006993 | P155: -0.01022100463 | Q155: 368588.1118 | R155: 368588.1118
A156: 1.44 | B156: -207.9672302 | C156: -139.8929428 | D156: 171.0557693 | E156: 102.0050799 | F156: 0.672668202 | G156: 0.5963264517 | H156: 1.486617023 | I156: 1.676933829 | J156: 0.3947860224 | K156: 1.44 | L156: 0.672668202 | M156: 0.5963264517 | N156: 0.07634175031 | O156: 0.6944444444 | P156: -0.01022100463 | Q156: 368586.4013 | R156: 368586.4013
A157: 1.45 | B157: -209.3661596 | C157: -139.9682883 | D157: 172.0758201 | E157: 102.2446966 | F157: 0.668533485 | G157: 0.5941839856 | H157: 1.495811388 | I157: 1.682980397 | J157: 0.3947860224 | K157: 1.45 | L157: 0.668533485 | M157: 0.5941839856 | N157: 0.07434949935 | O157: 0.6896551724 | P157: -0.01022100463 | Q157: 368584.6805 | R157: 368584.6805
A158: 1.46 | B158: -210.7658425 | C158: -140.0415872 | D158: 173.0982671 | E158: 102.4778043 | F158: 0.6644415694 | G158: 0.5920209722 | H158: 1.505023235 | I158: 1.68912935 | J158: 0.3947860224 | K158: 1.46 | L158: 0.6644415694 | M158: 0.5920209722 | N158: 0.07242059723 | O158: 0.6849315068 | P158: -0.01022100463 | Q158: 368582.9496 | R158: 368582.9496
A159: 1.47 | B159: -212.1662583 | C159: -140.1129083 | D159: 174.1230451 | E159: 102.7046227 | F159: 0.6603920408 | G159: 0.5898393438 | H159: 1.514252048 | I159: 1.695376903 | J159: 0.3947860224 | K159: 1.47 | L159: 0.6603920408 | M159: 0.5898393438 | N159: 0.07055269702 | O159: 0.6802721088 | P159: -0.01022100463 | Q159: 368581.2083 | R159: 368581.2083
A160: 1.48 | B160: -213.5673874 | C160: -140.1823181 | D160: 175.1500913 | E160: 102.9253623 | F160: 0.656384478 | G160: 0.5876409283 | H160: 1.52349733 | I160: 1.701719455 | J160: 0.3947860224 | K160: 1.48 | L160: 0.656384478 | M160: 0.5876409283 | N160: 0.06874354978 | O160: 0.6756756757 | P160: -0.01022100463 | Q160: 368579.4568 | R160: 368579.4568
A161: 1.49 | B161: -214.9692106 | C161: -140.2498801 | D161: 176.1793449 | E161: 103.1402254 | F161: 0.6524184543 | G161: 0.5854274542 | H161: 1.532758605 | I161: 1.708153577 | J161: 0.3947860224 | K161: 1.49 | L161: 0.6524184543 | M161: 0.5854274542 | N161: 0.06699100009 | O161: 0.6711409396 | P161: -0.01022100463 | Q161: 368577.695 | R161: 368577.695
A162: 1.5 | B162: -216.3717094 | C162: -140.3156554 | D162: 177.2107472 | E162: 103.3494063 | F162: 0.648493538 | G162: 0.5832005563 | H162: 1.542035412 | I162: 1.714676005 | J162: 0.3947860224 | K162: 1.5 | L162: 0.648493538 | M162: 0.5832005563 | N162: 0.06529298175 | O162: 0.6666666667 | P162: -0.01022100463 | Q162: 368575.9229 | R162: 368575.9229
A163: 1.51 | B163: -217.774866 | C163: -140.3797026 | D163: 178.2442413 | E163: 103.5530917 | F163: 0.6446092939 | G163: 0.5809617802 | H163: 1.551327307 | I163: 1.721283627 | J163: 0.3947860224 | K163: 1.51 | L163: 0.6446092939 | M163: 0.5809617802 | N163: 0.06364751374 | O163: 0.6622516556 | P163: -0.01022100463 | Q163: 368574.1405 | R163: 368574.1405
A164: 1.52 | B164: -219.178663 | C164: -140.4420781 | D164: 179.2797722 | E164: 103.7514608 | F164: 0.6407652836 | G164: 0.5787125872 | H164: 1.560633863 | I164: 1.727973474 | J164: 0.3947860224 | K164: 1.52 | L164: 0.6407652836 | M164: 0.5787125872 | N164: 0.06205269636 | O164: 0.6578947368 | P164: -0.01022100463 | Q164: 368572.3477 | R164: 368572.3477
A165: 1.53 | B165: -220.5830838 | C165: -140.5028362 | D165: 180.3172868 | E165: 103.9446859 | F165: 0.6369610661 | G165: 0.5764543586 | H165: 1.569954669 | I165: 1.734742717 | J165: 0.3947860224 | K165: 1.53 | L165: 0.6369610661 | M165: 0.5764543586 | N165: 0.06050670758 | O165: 0.6535947712 | P165: -0.01022100463 | Q165: 368570.5445 | R165: 368570.5445
A166: 1.54 | B166: -221.9881121 | C166: -140.5620289 | D166: 181.3567336 | E166: 104.1329327 | F166: 0.6331961993 | G166: 0.5741883998 | H166: 1.579289328 | I166: 1.74158865 | J166: 0.3947860224 | K166: 1.54 | L166: 0.6331961993 | M166: 0.5741883998 | N166: 0.05900779948 | O166: 0.6493506494 | P166: -0.01022100463 | Q166: 368568.7309 | R166: 368568.7309
A167: 1.55 | B167: -223.3937324 | C167: -140.6197063 | D167: 182.398063 | E167: 104.3163605 | F167: 0.6294702397 | G167: 0.5719159446 | H167: 1.588637456 | I167: 1.748508691 | J167: 0.3947860224 | K167: 1.55 | L167: 0.6294702397 | M167: 0.5719159446 | N167: 0.05755429502 | O167: 0.6451612903 | P167: -0.01022100463 | Q167: 368566.907 | R167: 368566.907
A168: 1.56 | B168: -224.7999295 | C168: -140.6759166 | D168: 183.4412266 | E168: 104.4951225 | F168: 0.6257827433 | G168: 0.5696381585 | H168: 1.597998684 | I168: 1.755500374 | J168: 0.3947860224 | K168: 1.56 | L168: 0.6257827433 | M168: 0.5696381585 | N168: 0.05614458477 | O168: 0.641025641 | P168: -0.01022100463 | Q168: 368565.0725 | R168: 368565.0725
A169: 1.57 | B169: -226.2066887 | C169: -140.7307061 | D169: 184.4861778 | E169: 104.6693661 | F169: 0.6221332663 | G169: 0.5673561423 | H169: 1.607372655 | I169: 1.762561336 | J169: 0.3947860224 | K169: 1.57 | L169: 0.6221332663 | M169: 0.5673561423 | N169: 0.054777124 | O169: 0.6369426752 | P169: -0.01022100463 | Q169: 368563.2277 | R169: 368563.2277
A170: 1.58 | B170: -227.6139957 | C170: -140.7841194 | D170: 185.5328715 | E170: 104.8392333 | F170: 0.6185213654 | G170: 0.5650709357 | H170: 1.616759026 | I170: 1.76968932 | J170: 0.3947860224 | K170: 1.58 | L170: 0.6185213654 | M170: 0.5650709357 | N170: 0.05345042972 | O170: 0.6329113924 | P170: -0.01022100463 | Q170: 368561.3724 | R170: 368561.3724
A171: 1.59 | B171: -229.0218369 | C171: -140.8361995 | D171: 186.5812638 | E171: 105.0048605 | F171: 0.6149465983 | G171: 0.5627835203 | H171: 1.626157463 | I171: 1.776882165 | J171: 0.3947860224 | K171: 1.59 | L171: 0.6149465983 | M171: 0.5627835203 | N171: 0.05216307803 | O171: 0.6289308176 | P171: -0.01022100463 | Q171: 368559.5065 | R171: 368559.5065
A172: 1.6 | B172: -230.4301989 | C172: -140.8869878 | D172: 187.6313124 | E172: 105.1663791 | F172: 0.611408524 | G172: 0.5604948225 | H172: 1.635567645 | I172: 1.784137801 | J172: 0.3947860224 | K172: 1.6 | L172: 0.611408524 | M172: 0.5604948225 | N172: 0.05091370146 | O172: 0.625 | P172: -0.01022100463 | Q172: 368557.6302 | R172: 368557.6302
A173: 1.61 | B173: -231.8390688 | C173: -140.936524 | D173: 188.6829762 | E173: 105.3239159 | F173: 0.6079067032 | G173: 0.5582057167 | H173: 1.644989264 | I173: 1.791454244 | J173: 0.3947860224 | K173: 1.61 | L173: 0.6079067032 | M173: 0.5582057167 | N173: 0.04970098651 | O173: 0.6211180124 | P173: -0.01022100463 | Q173: 368555.7434 | R173: 368555.7434
A174: 1.62 | B174: -233.248434 | C174: -140.9848464 | D174: 189.7362154 | E174: 105.4775928 | F174: 0.6044406986 | G174: 0.5559170273 | H174: 1.654422017 | I174: 1.798829593 | J174: 0.3947860224 | K174: 1.62 | L174: 0.6044406986 | M174: 0.5559170273 | N174: 0.04852367131 | O174: 0.6172839506 | P174: -0.01022100463 | Q174: 368553.846 | R174: 368553.846
A175: 1.63 | B175: -234.6582825 | C175: -141.0319921 | D175: 190.7909913 | E175: 105.6275273 | F175: 0.6010100756 | G175: 0.5536295322 | H175: 1.663865617 | I175: 1.806262025 | J175: 0.3947860224 | K175: 1.63 | L175: 0.6010100756 | M175: 0.5536295322 | N175: 0.04738054335 | O175: 0.6134969325 | P175: -0.01022100463 | Q175: 368551.9381 | R175: 368551.9381
A176: 1.64 | B176: -236.0686024 | C176: -141.0779966 | D176: 191.8472666 | E176: 105.7738325 | F176: 0.5976144017 | G176: 0.5513439644 | H176: 1.673319781 | I176: 1.813749791 | J176: 0.3947860224 | K176: 1.64 | L176: 0.5976144017 | M176: 0.5513439644 | N176: 0.04627043735 | O176: 0.6097560976 | P176: -0.01022100463 | Q176: 368550.0197 | R176: 368550.0197
A177: 1.65 | B177: -237.4793824 | C177: -141.1228942 | D177: 192.9050049 | E177: 105.9166177 | F177: 0.5942532477 | G177: 0.5490610145 | H177: 1.68278424 | I177: 1.821291211 | J177: 0.3947860224 | K177: 1.65 | L177: 0.5942532477 | M177: 0.5490610145 | N177: 0.04519223321 | O177: 0.6060606061 | P177: -0.01022100463 | Q177: 368548.0906 | R177: 368548.0906
A178: 1.66 | B178: -238.8906113 | C178: -141.1667181 | D178: 193.9641711 | E178: 106.055988 | F178: 0.5909261873 | G178: 0.5467813332 | H178: 1.692258731 | I178: 1.828884673 | J178: 0.3947860224 | K178: 1.66 | L178: 0.5909261873 | M178: 0.5467813332 | N178: 0.04414485408 | O178: 0.6024096386 | P178: -0.01022100463 | Q178: 368546.151 | R178: 368546.151
A179: 1.67 | B179: -240.3022785 | C179: -141.2095002 | D179: 195.0247309 | E179: 106.1920451 | F179: 0.5876327975 | G179: 0.544505533 | H179: 1.701743 | I179: 1.836528629 | J179: 0.3947860224 | K179: 1.67 | L179: 0.5876327975 | M179: 0.544505533 | N179: 0.0431272645 | O179: 0.5988023952 | P179: -0.01022100463 | Q179: 368544.2007 | R179: 368544.2007
A180: 1.68 | B180: -241.7143735 | C180: -141.2512711 | D180: 196.0866514 | E180: 106.3248866 | F180: 0.5843726588 | G180: 0.5422341902 | H180: 1.711236802 | I180: 1.844221589 | J180: 0.3947860224 | K180: 1.68 | L180: 0.5843726588 | M180: 0.5422341902 | N180: 0.04213846862 | O180: 0.5952380952 | P180: -0.01022100463 | Q180: 368542.2398 | R180: 368542.2398
A181: 1.69 | B181: -243.1268862 | C181: -141.2920607 | D181: 197.1499003 | E181: 106.4546071 | F181: 0.5811453554 | G181: 0.5399678468 | H181: 1.720739899 | I181: 1.851962123 | J181: 0.3947860224 | K181: 1.69 | L181: 0.5811453554 | M181: 0.5399678468 | N181: 0.04117750852 | O181: 0.5917159763 | P181: -0.01022100463 | Q181: 368540.2684 | R181: 368540.2684
A182: 1.7 | B182: -244.5398068 | C182: -141.3318975 | D182: 198.2144463 | E182: 106.5812978 | F182: 0.5779504751 | G182: 0.5377070125 | H182: 1.73025206 | I182: 1.859748854 | J182: 0.3947860224 | K182: 1.7 | L182: 0.5779504751 | M182: 0.5377070125 | N182: 0.04024346262 | O182: 0.5882352941 | P182: -0.01022100463 | Q182: 368538.2862 | R182: 368538.2862
A183: 1.71 | B183: -245.9531258 | C183: -141.3708093 | D183: 199.2802593 | E183: 106.7050464 | F183: 0.5747876098 | G183: 0.5354521656 | H183: 1.739773062 | I183: 1.867580457 | J183: 0.3947860224 | K183: 1.71 | L183: 0.5747876098 | M183: 0.5354521656 | N183: 0.03933544413 | O183: 0.5847953216 | P183: -0.01022100463 | Q183: 368536.2934 | R183: 368536.2934
A184: 1.72 | B184: -247.3668339 | C184: -141.4088227 | D184: 200.3473098 | E184: 106.825938 | F184: 0.5716563553 | G184: 0.5332037557 | H184: 1.74930269 | I184: 1.875455657 | J184: 0.3947860224 | K184: 1.72 | L184: 0.5716563553 | M184: 0.5332037557 | N184: 0.0384525996 | O184: 0.5813953488 | P184: -0.01022100463 | Q184: 368534.2899 | R184: 368534.2899
A185: 1.73 | B185: -248.7809221 | C185: -141.4459635 | D185: 201.4155691 | E185: 106.9440545 | F185: 0.5685563116 | G185: 0.5309622041 | H185: 1.758840733 | I185: 1.883373228 | J185: 0.3947860224 | K185: 1.73 | L185: 0.5685563116 | M185: 0.5309622041 | N185: 0.03759410749 | O185: 0.5780346821 | P185: -0.01022100463 | Q185: 368532.2758 | R185: 368532.2758
A186: 1.74 | B186: -250.1953817 | C186: -141.4822565 | D186: 202.4850097 | E186: 107.0594751 | F186: 0.5654870827 | G186: 0.5287279058 | H186: 1.76838699 | I186: 1.891331986 | J186: 0.3947860224 | K186: 1.74 | L186: 0.5654870827 | M186: 0.5287279058 | N186: 0.0367591769 | O186: 0.5747126437 | P186: -0.01022100463 | Q186: 368530.2509 | R186: 368530.2509
A187: 1.75 | B187: -251.6102043 | C187: -141.517726 | D187: 203.5556044 | E187: 107.1722763 | F187: 0.5624482773 | G187: 0.5265012311 | H187: 1.777941262 | I187: 1.899330792 | J187: 0.3947860224 | K187: 1.75 | L187: 0.5624482773 | M187: 0.5265012311 | N187: 0.03594704624 | O187: 0.5714285714 | P187: -0.01022100463 | Q187: 368528.2154 | R187: 368528.2154
A188: 1.76 | B188: -253.0253816 | C188: -141.552395 | D188: 204.6273272 | E188: 107.282532 | F188: 0.5594395079 | G188: 0.5242825259 | H188: 1.78750336 | I188: 1.907368548 | J188: 0.3947860224 | K188: 1.76 | L188: 0.5594395079 | M188: 0.5242825259 | N188: 0.03515698204 | O188: 0.5681818182 | P188: -0.01022100463 | Q188: 368526.1691 | R188: 368526.1691
A189: 1.77 | B189: -254.4409055 | C189: -141.586286 | D189: 205.7001525 | E189: 107.3903135 | F189: 0.5564603918 | G189: 0.522072114 | H189: 1.797073097 | I189: 1.915444195 | J189: 0.3947860224 | K189: 1.77 | L189: 0.5564603918 | M189: 0.522072114 | N189: 0.0343882778 | O189: 0.5649717514 | P189: -0.01022100463 | Q189: 368524.1121 | R189: 368524.1121
A190: 1.78 | B190: -255.8567684 | C190: -141.6194207 | D190: 206.7740557 | E190: 107.4956899 | F190: 0.5535105506 | G190: 0.5198702977 | H190: 1.806650296 | I190: 1.923556711 | J190: 0.3947860224 | K190: 1.78 | L190: 0.5535105506 | M190: 0.5198702977 | N190: 0.03364025288 | O190: 0.5617977528 | P190: -0.01022100463 | Q190: 368522.0444 | R190: 368522.0444
A191: 1.79 | B191: -257.2729626 | C191: -141.6518202 | D191: 207.8490126 | E191: 107.5987279 | F191: 0.5505896103 | G191: 0.5176773588 | H191: 1.816234781 | I191: 1.931705111 | J191: 0.3947860224 | K191: 1.79 | L191: 0.5505896103 | M191: 0.5176773588 | N191: 0.03291225142 | O191: 0.5586592179 | P191: -0.01022100463 | Q191: 368519.9659 | R191: 368519.9659
A192: 1.8 | B192: -258.6894808 | C192: -141.6835047 | D192: 208.9249998 | E192: 107.6994919 | F192: 0.5476972014 | G192: 0.51549356 | H192: 1.825826383 | I192: 1.939888444 | J192: 0.3947860224 | K192: 1.8 | L192: 0.5476972014 | M192: 0.51549356 | N192: 0.03220364138 | O192: 0.5555555556 | P192: -0.01022100463 | Q192: 368517.8766 | R192: 368517.8766
A193: 1.81 | B193: -260.1063158 | C193: -141.7144937 | D193: 210.0019948 | E193: 107.7980445 | F193: 0.544832959 | G193: 0.5133191455 | H193: 1.835424938 | I193: 1.948105791 | J193: 0.3947860224 | K193: 1.81 | L193: 0.544832959 | M193: 0.5133191455 | N193: 0.03151381352 | O193: 0.5524861878 | P193: -0.01022100463 | Q193: 368515.7766 | R193: 368515.7766
A194: 1.82 | B194: -261.5234608 | C194: -141.7448063 | D194: 211.0799752 | E194: 107.8944459 | F194: 0.5419965227 | G194: 0.5111543422 | H194: 1.845030287 | I194: 1.956356265 | J194: 0.3947860224 | K194: 1.82 | L194: 0.5419965227 | M194: 0.5111543422 | N194: 0.0308421805 | O194: 0.5494505495 | P194: -0.01022100463 | Q194: 368513.6658 | R194: 368513.6658
A195: 1.83 | B195: -262.9409088 | C195: -141.7744609 | D195: 212.1589197 | E195: 107.9887545 | F195: 0.5391875366 | G195: 0.5089993606 | H195: 1.854642276 | I195: 1.96463901 | J195: 0.3947860224 | K195: 1.83 | L195: 0.5391875366 | M195: 0.5089993606 | N195: 0.03018817602 | O195: 0.5464480874 | P195: -0.01022100463 | Q195: 368511.5442 | R195: 368511.5442
A196: 1.84 | B196: -264.3586534 | C196: -141.8034752 | D196: 213.2388072 | E196: 108.0810267 | F196: 0.5364056494 | G196: 0.5068543955 | H196: 1.864260753 | I196: 1.972953197 | J196: 0.3947860224 | K196: 1.84 | L196: 0.5364056494 | M196: 0.5068543955 | N196: 0.02955125397 | O196: 0.5434782609 | P196: -0.01022100463 | Q196: 368509.4118 | R196: 368509.4118
A197: 1.85 | B197: -265.7766882 | C197: -141.8318663 | D197: 214.3196175 | E197: 108.1713173 | F197: 0.5336505143 | G197: 0.5047196267 | H197: 1.873885574 | I197: 1.981298026 | J197: 0.3947860224 | K197: 1.85 | L197: 0.5336505143 | M197: 0.5047196267 | N197: 0.02893088759 | O197: 0.5405405405 | P197: -0.01022100463 | Q197: 368507.2686 | R197: 368507.2686
A198: 1.86 | B198: -267.1950069 | C198: -141.859651 | D198: 215.4013306 | E198: 108.2596792 | F198: 0.5309217888 | G198: 0.5025952201 | H198: 1.883516595 | I198: 1.989672723 | J198: 0.3947860224 | K198: 1.86 | L198: 0.5309217888 | M198: 0.5025952201 | N198: 0.02832656874 | O198: 0.5376344086 | P198: -0.01022100463 | Q198: 368505.1146 | R198: 368505.1146
A199: 1.87 | B199: -268.6136034 | C199: -141.8868453 | D199: 216.4839274 | E199: 108.3461635 | F199: 0.5282191354 | G199: 0.5004813282 | H199: 1.89315368 | I199: 1.998076539 | J199: 0.3947860224 | K199: 1.87 | L199: 0.5282191354 | M199: 0.5004813282 | N199: 0.02773780716 | O199: 0.5347593583 | P199: -0.01022100463 | Q199: 368502.9498 | R199: 368502.9498
A200: 1.88 | B200: -270.0324718 | C200: -141.9134649 | D200: 217.5673891 | E200: 108.43082 | F200: 0.5255422205 | G200: 0.4983780908 | H200: 1.902796695 | I200: 2.00650875 | J200: 0.3947860224 | K200: 1.88 | L200: 0.5255422205 | M200: 0.4983780908 | N200: 0.02716412974 | O200: 0.5319148936 | P200: -0.01022100463 | Q200: 368500.7741 | R200: 368500.7741
... 4300 more rows

Sheet anime
A1: n | B1: 15
A2: th=n*2π/16 | B2: =+B1*2*3.1416/16 -> 5.8905
A3: ω | B3: =+球面波!B3 -> 0.62832
A11: r | B11: Vr=Vr0*cos(th)+Vi0*sin(th) | C11: Vi=-Vr0*sin(th)+Vi0*cos(th) | D11: Vr0 | E11: Vi0
A12: =+球面波!A12 -> 0 | B12: =+D12*COS($B$2)+E12*SIN($B$2) -> -141590.5203 | C12: =-D12*SIN($B$2)+E12*COS($B$2) -> 341843.0459 | D12: -0.01022100463 | E12: 370006.1397
A13: =+球面波!A13 -> 0.01 | B13: =+D13*COS($B$2)+E13*SIN($B$2) -> -141379.0599 | C13: =-D13*SIN($B$2)+E13*COS($B$2) -> 341332.5155 | D13: -0.01022100463 | E13: 369453.5488
A14: =+球面波!A14 -> 0.02 | B14: -141291.573 | C14: 341121.2953 | D14: -0.01022100463 | E14: 369224.927
A15: =+球面波!A15 -> 0.03 | B15: -141244.2012 | C15: 341006.925 | D15: -0.01022100463 | E15: 369101.1342
A16: =+球面波!A16 -> 0.04 | B16: -141214.582 | C16: 340935.4153 | D16: -0.01022100463 | E16: 369023.7331
A17: =+球面波!A17 -> 0.05 | B17: -141194.3298 | C17: 340886.5202 | D17: -0.01022100463 | E17: 368970.8097
A18: =+球面波!A18 -> 0.06 | B18: -141179.611 | C18: 340850.9844 | D18: -0.01022100463 | E18: 368932.3463
A19: =+球面波!A19 -> 0.07 | B19: -141168.4289 | C19: 340823.9875 | D19: -0.01022100463 | E19: 368903.1252
A20: =+球面波!A20 -> 0.08 | B20: -141159.6427 | C20: 340802.7747 | D20: -0.01022100463 | E20: 368880.1648
A21: =+球面波!A21 -> 0.09 | B21: -141152.5534 | C21: 340785.6591 | D21: -0.01022100463 | E21: 368861.6391
A22: =+球面波!A22 -> 0.1 | B22: -141146.7094 | C22: 340771.5498 | D22: -0.01022100463 | E22: 368846.3674
A23: =+球面波!A23 -> 0.11 | B23: -141141.8056 | C23: 340759.7107 | D23: -0.01022100463 | E23: 368833.5529
A24: =+球面波!A24 -> 0.12 | B24: -141137.629 | C24: 340749.6269 | D24: -0.01022100463 | E24: 368822.6384
A25: =+球面波!A25 -> 0.13 | B25: -141134.0258 | C25: 340740.9277 | D25: -0.01022100463 | E25: 368813.2224
A26: =+球面波!A26 -> 0.14 | B26: -141130.8826 | C26: 340733.3391 | D26: -0.01022100463 | E26: 368805.0087
A27: =+球面波!A27 -> 0.15 | B27: -141128.1139 | C27: 340726.6547 | D27: -0.01022100463 | E27: 368797.7735
A28: =+球面波!A28 -> 0.16 | B28: -141125.6539 | C28: 340720.7155 | D28: -0.01022100463 | E28: 368791.3451
A29: =+球面波!A29 -> 0.17 | B29: -141123.4513 | C29: 340715.3976 | D29: -0.01022100463 | E29: 368785.589
A30: =+球面波!A30 -> 0.18 | B30: -141121.4652 | C30: 340710.6027 | D30: -0.01022100463 | E30: 368780.3991
A31: =+球面波!A31 -> 0.19 | B31: -141119.6631 | C31: 340706.2517 | D31: -0.01022100463 | E31: 368775.6896
A32: =+球面波!A32 -> 0.2 | B32: -141118.0183 | C32: 340702.2807 | D32: -0.01022100463 | E32: 368771.3914
A33: =+球面波!A33 -> 0.21 | B33: -141116.5091 | C33: 340698.6369 | D33: -0.01022100463 | E33: 368767.4475
A34: =+球面波!A34 -> 0.22 | B34: -141115.1174 | C34: 340695.277 | D34: -0.01022100463 | E34: 368763.8107
A35: =+球面波!A35 -> 0.23 | B35: -141113.8281 | C35: 340692.1644 | D35: -0.01022100463 | E35: 368760.4417
A36: =+球面波!A36 -> 0.24 | B36: -141112.6287 | C36: 340689.2686 | D36: -0.01022100463 | E36: 368757.3074
A37: =+球面波!A37 -> 0.25 | B37: -141111.5083 | C37: 340686.5636 | D37: -0.01022100463 | E37: 368754.3795
A38: =+球面波!A38 -> 0.26 | B38: -141110.4578 | C38: 340684.0273 | D38: -0.01022100463 | E38: 368751.6343
A39: =+球面波!A39 -> 0.27 | B39: -141109.4692 | C39: 340681.6407 | D39: -0.01022100463 | E39: 368749.051
A40: =+球面波!A40 -> 0.28 | B40: -141108.5359 | C40: 340679.3872 | D40: -0.01022100463 | E40: 368746.6119
A41: =+球面波!A41 -> 0.29 | B41: -141107.6518 | C41: 340677.2528 | D41: -0.01022100463 | E41: 368744.3016
A42: =+球面波!A42 -> 0.3 | B42: -141106.8119 | C42: 340675.225 | D42: -0.01022100463 | E42: 368742.1067
A43: =+球面波!A43 -> 0.31 | B43: -141106.0116 | C43: 340673.2928 | D43: -0.01022100463 | E43: 368740.0153
A44: =+球面波!A44 -> 0.32 | B44: -141105.2469 | C44: 340671.4467 | D44: -0.01022100463 | E44: 368738.0171
A45: =+球面波!A45 -> 0.33 | B45: -141104.5144 | C45: 340669.6782 | D45: -0.01022100463 | E45: 368736.103
A46: =+球面波!A46 -> 0.34 | B46: -141103.811 | C46: 340667.9799 | D46: -0.01022100463 | E46: 368734.2648
A47: =+球面波!A47 -> 0.35 | B47: -141103.1339 | C47: 340666.3451 | D47: -0.01022100463 | E47: 368732.4953
A48: =+球面波!A48 -> 0.36 | B48: -141102.4805 | C48: 340664.7678 | D48: -0.01022100463 | E48: 368730.788
A49: =+球面波!A49 -> 0.37 | B49: -141101.8488 | C49: 340663.2427 | D49: -0.01022100463 | E49: 368729.1373
A50: =+球面波!A50 -> 0.38 | B50: -141101.2368 | C50: 340661.765 | D50: -0.01022100463 | E50: 368727.5378
A51: =+球面波!A51 -> 0.39 | B51: -141100.6426 | C51: 340660.3303 | D51: -0.01022100463 | E51: 368725.985
A52: =+球面波!A52 -> 0.4 | B52: -141100.0646 | C52: 340658.9349 | D52: -0.01022100463 | E52: 368724.4745
A53: =+球面波!A53 -> 0.41 | B53: -141099.5013 | C53: 340657.5751 | D53: -0.01022100463 | E53: 368723.0027
A54: =+球面波!A54 -> 0.42 | B54: -141098.9515 | C54: 340656.2477 | D54: -0.01022100463 | E54: 368721.566
A55: =+球面波!A55 -> 0.43 | B55: -141098.414 | C55: 340654.9499 | D55: -0.01022100463 | E55: 368720.1613
A56: =+球面波!A56 -> 0.44 | B56: -141097.8876 | C56: 340653.679 | D56: -0.01022100463 | E56: 368718.7856
A57: =+球面波!A57 -> 0.45 | B57: -141097.3713 | C57: 340652.4325 | D57: -0.01022100463 | E57: 368717.4365
A58: =+球面波!A58 -> 0.46 | B58: -141096.8642 | C58: 340651.2083 | D58: -0.01022100463 | E58: 368716.1114
A59: =+球面波!A59 -> 0.47 | B59: -141096.3656 | C59: 340650.0043 | D59: -0.01022100463 | E59: 368714.8083
A60: =+球面波!A60 -> 0.48 | B60: -141095.8745 | C60: 340648.8187 | D60: -0.01022100463 | E60: 368713.5249
A61: =+球面波!A61 -> 0.49 | B61: -141095.3902 | C61: 340647.6496 | D61: -0.01022100463 | E61: 368712.2596
A62: =+球面波!A62 -> 0.5 | B62: -141094.9123 | C62: 340646.4956 | D62: -0.01022100463 | E62: 368711.0105
A63: =+球面波!A63 -> 0.51 | B63: -141094.4399 | C63: 340645.3552 | D63: -0.01022100463 | E63: 368709.7761
A64: =+球面波!A64 -> 0.52 | B64: -141093.9726 | C64: 340644.2269 | D64: -0.01022100463 | E64: 368708.5549
A65: =+球面波!A65 -> 0.53 | B65: -141093.5098 | C65: 340643.1097 | D65: -0.01022100463 | E65: 368707.3456
A66: =+球面波!A66 -> 0.54 | B66: -141093.0511 | C66: 340642.0022 | D66: -0.01022100463 | E66: 368706.1468
A67: =+球面波!A67 -> 0.55 | B67: -141092.596 | C67: 340640.9034 | D67: -0.01022100463 | E67: 368704.9575
A68: =+球面波!A68 -> 0.56 | B68: -141092.144 | C68: 340639.8123 | D68: -0.01022100463 | E68: 368703.7765
A69: =+球面波!A69 -> 0.57 | B69: -141091.6949 | C69: 340638.728 | D69: -0.01022100463 | E69: 368702.6029
A70: =+球面波!A70 -> 0.58 | B70: -141091.2482 | C70: 340637.6495 | D70: -0.01022100463 | E70: 368701.4356
A71: =+球面波!A71 -> 0.59 | B71: -141090.8036 | C71: 340636.5761 | D71: -0.01022100463 | E71: 368700.2738
A72: =+球面波!A72 -> 0.6 | B72: -141090.3608 | C72: 340635.5071 | D72: -0.01022100463 | E72: 368699.1166
A73: =+球面波!A73 -> 0.61 | B73: -141089.9195 | C73: 340634.4416 | D73: -0.01022100463 | E73: 368697.9634
A74: =+球面波!A74 -> 0.62 | B74: -141089.4794 | C74: 340633.3791 | D74: -0.01022100463 | E74: 368696.8133
A75: =+球面波!A75 -> 0.63 | B75: -141089.0403 | C75: 340632.3188 | D75: -0.01022100463 | E75: 368695.6657
A76: =+球面波!A76 -> 0.64 | B76: -141088.6018 | C76: 340631.2603 | D76: -0.01022100463 | E76: 368694.52
A77: =+球面波!A77 -> 0.65 | B77: =+D77*COS($B$2)+E77*SIN($B$2) -> -141088.1639 | C77: =-D77*SIN($B$2)+E77*COS($B$2) -> 340630.2029 | D77: -0.01022100463 | E77: 368693.3755
A78: =+球面波!A78 -> 0.66 | B78: -141087.7262 | C78: 340629.1462 | D78: -0.01022100463 | E78: 368692.2317
A79: =+球面波!A79 -> 0.67 | B79: -141087.2885 | C79: 340628.0896 | D79: -0.01022100463 | E79: 368691.0881
A80: =+球面波!A80 -> 0.68 | B80: -141086.8508 | C80: 340627.0327 | D80: -0.01022100463 | E80: 368689.9441
A81: =+球面波!A81 -> 0.69 | B81: -141086.4127 | C81: 340625.9751 | D81: -0.01022100463 | E81: 368688.7993
A82: =+球面波!A82 -> 0.7 | B82: -141085.9741 | C82: 340624.9163 | D82: -0.01022100463 | E82: 368687.6533
A83: =+球面波!A83 -> 0.71 | B83: -141085.535 | C83: 340623.8559 | D83: -0.01022100463 | E83: 368686.5056
A84: =+球面波!A84 -> 0.72 | B84: -141085.095 | C84: 340622.7937 | D84: -0.01022100463 | E84: 368685.3558
A85: =+球面波!A85 -> 0.73 | B85: -141084.654 | C85: 340621.7291 | D85: -0.01022100463 | E85: 368684.2036
A86: =+球面波!A86 -> 0.74 | B86: -141084.212 | C86: 340620.662 | D86: -0.01022100463 | E86: 368683.0485
A87: =+球面波!A87 -> 0.75 | B87: -141083.7688 | C87: 340619.592 | D87: -0.01022100463 | E87: 368681.8904
A88: =+球面波!A88 -> 0.76 | B88: -141083.3243 | C88: 340618.5188 | D88: -0.01022100463 | E88: 368680.7287
A89: =+球面波!A89 -> 0.77 | B89: -141082.8784 | C89: 340617.4421 | D89: -0.01022100463 | E89: 368679.5634
A90: =+球面波!A90 -> 0.78 | B90: -141082.4309 | C90: 340616.3617 | D90: -0.01022100463 | E90: 368678.3939
A91: =+球面波!A91 -> 0.79 | B91: -141081.9817 | C91: 340615.2773 | D91: -0.01022100463 | E91: 368677.2202
A92: =+球面波!A92 -> 0.8 | B92: -141081.5308 | C92: 340614.1886 | D92: -0.01022100463 | E92: 368676.0418
A93: =+球面波!A93 -> 0.81 | B93: -141081.078 | C93: 340613.0955 | D93: -0.01022100463 | E93: 368674.8586
A94: =+球面波!A94 -> 0.82 | B94: -141080.6233 | C94: 340611.9977 | D94: -0.01022100463 | E94: 368673.6704
A95: =+球面波!A95 -> 0.83 | B95: -141080.1666 | C95: 340610.895 | D95: -0.01022100463 | E95: 368672.4768
A96: =+球面波!A96 -> 0.84 | B96: -141079.7077 | C96: 340609.7872 | D96: -0.01022100463 | E96: 368671.2778
A97: =+球面波!A97 -> 0.85 | B97: -141079.2467 | C97: 340608.6741 | D97: -0.01022100463 | E97: 368670.073
A98: =+球面波!A98 -> 0.86 | B98: -141078.7834 | C98: 340607.5556 | D98: -0.01022100463 | E98: 368668.8624
A99: =+球面波!A99 -> 0.87 | B99: -141078.3178 | C99: 340606.4315 | D99: -0.01022100463 | E99: 368667.6456
A100: =+球面波!A100 -> 0.88 | B100: -141077.8498 | C100: 340605.3016 | D100: -0.01022100463 | E100: 368666.4226
A101: =+球面波!A101 -> 0.89 | B101: -141077.3793 | C101: 340604.1657 | D101: -0.01022100463 | E101: 368665.1932
A102: =+球面波!A102 -> 0.9 | B102: -141076.9063 | C102: 340603.0237 | D102: -0.01022100463 | E102: 368663.9571
A103: =+球面波!A103 -> 0.91 | B103: -141076.4307 | C103: 340601.8755 | D103: -0.01022100463 | E103: 368662.7143
A104: =+球面波!A104 -> 0.92 | B104: -141075.9525 | C104: 340600.7209 | D104: -0.01022100463 | E104: 368661.4646
A105: =+球面波!A105 -> 0.93 | B105: -141075.4716 | C105: 340599.5599 | D105: -0.01022100463 | E105: 368660.2079
A106: =+球面波!A106 -> 0.94 | B106: -141074.9879 | C106: 340598.3921 | D106: -0.01022100463 | E106: 368658.9439
A107: =+球面波!A107 -> 0.95 | B107: -141074.5014 | C107: 340597.2176 | D107: -0.01022100463 | E107: 368657.6727
A108: =+球面波!A108 -> 0.96 | B108: -141074.0121 | C108: 340596.0363 | D108: -0.01022100463 | E108: 368656.394
A109: =+球面波!A109 -> 0.97 | B109: -141073.5199 | C109: 340594.848 | D109: -0.01022100463 | E109: 368655.1078
A110: =+球面波!A110 -> 0.98 | B110: -141073.0248 | C110: 340593.6525 | D110: -0.01022100463 | E110: 368653.8139
A111: =+球面波!A111 -> 0.99 | B111: -141072.5267 | C111: 340592.4499 | D111: -0.01022100463 | E111: 368652.5122
A112: =+球面波!A112 -> 1 | B112: -141072.0255 | C112: 340591.24 | D112: -0.01022100463 | E112: 368651.2026
A113: =+球面波!A113 -> 1.01 | B113: -141071.5213 | C113: 340590.0228 | D113: -0.01022100463 | E113: 368649.885
A114: =+球面波!A114 -> 1.02 | B114: -141071.014 | C114: 340588.798 | D114: -0.01022100463 | E114: 368648.5594
A115: =+球面波!A115 -> 1.03 | B115: -141070.5036 | C115: 340587.5657 | D115: -0.01022100463 | E115: 368647.2255
A116: =+球面波!A116 -> 1.04 | B116: -141069.99 | C116: 340586.3257 | D116: -0.01022100463 | E116: 368645.8834
A117: =+球面波!A117 -> 1.05 | B117: -141069.4733 | C117: 340585.0781 | D117: -0.01022100463 | E117: 368644.533
A118: =+球面波!A118 -> 1.06 | B118: -141068.9532 | C118: 340583.8226 | D118: -0.01022100463 | E118: 368643.174
A119: =+球面波!A119 -> 1.07 | B119: -141068.43 | C119: 340582.5592 | D119: -0.01022100463 | E119: 368641.8066
A120: =+球面波!A120 -> 1.08 | B120: -141067.9034 | C120: 340581.2879 | D120: -0.01022100463 | E120: 368640.4305
A121: =+球面波!A121 -> 1.09 | B121: -141067.3735 | C121: 340580.0086 | D121: -0.01022100463 | E121: 368639.0458
A122: =+球面波!A122 -> 1.1 | B122: -141066.8402 | C122: 340578.7211 | D122: -0.01022100463 | E122: 368637.6523
A123: =+球面波!A123 -> 1.11 | B123: -141066.3036 | C123: 340577.4256 | D123: -0.01022100463 | E123: 368636.25
A124: =+球面波!A124 -> 1.12 | B124: -141065.7636 | C124: 340576.1218 | D124: -0.01022100463 | E124: 368634.8388
A125: =+球面波!A125 -> 1.13 | B125: -141065.2201 | C125: 340574.8097 | D125: -0.01022100463 | E125: 368633.4187
A126: =+球面波!A126 -> 1.14 | B126: -141064.6732 | C126: 340573.4894 | D126: -0.01022100463 | E126: 368631.9895
A127: =+球面波!A127 -> 1.15 | B127: -141064.1229 | C127: 340572.1606 | D127: -0.01022100463 | E127: 368630.5513
A128: =+球面波!A128 -> 1.16 | B128: -141063.569 | C128: 340570.8234 | D128: -0.01022100463 | E128: 368629.1039
A129: =+球面波!A129 -> 1.17 | B129: -141063.0116 | C129: 340569.4777 | D129: -0.01022100463 | E129: 368627.6473
A130: =+球面波!A130 -> 1.18 | B130: -141062.4507 | C130: 340568.1234 | D130: -0.01022100463 | E130: 368626.1815
A131: =+球面波!A131 -> 1.19 | B131: -141061.8862 | C131: 340566.7606 | D131: -0.01022100463 | E131: 368624.7064
A132: =+球面波!A132 -> 1.2 | B132: -141061.3181 | C132: 340565.3891 | D132: -0.01022100463 | E132: 368623.2219
A133: =+球面波!A133 -> 1.21 | B133: -141060.7465 | C133: 340564.0089 | D133: -0.01022100463 | E133: 368621.728
A134: =+球面波!A134 -> 1.22 | B134: -141060.1712 | C134: 340562.62 | D134: -0.01022100463 | E134: 368620.2247
A135: =+球面波!A135 -> 1.23 | B135: -141059.5923 | C135: 340561.2223 | D135: -0.01022100463 | E135: 368618.7119
A136: =+球面波!A136 -> 1.24 | B136: -141059.0097 | C136: 340559.8158 | D136: -0.01022100463 | E136: 368617.1895
A137: =+球面波!A137 -> 1.25 | B137: -141058.4235 | C137: 340558.4005 | D137: -0.01022100463 | E137: 368615.6575
A138: =+球面波!A138 -> 1.26 | B138: -141057.8336 | C138: 340556.9763 | D138: -0.01022100463 | E138: 368614.116
A139: =+球面波!A139 -> 1.27 | B139: -141057.24 | C139: 340555.5431 | D139: -0.01022100463 | E139: 368612.5647
A140: =+球面波!A140 -> 1.28 | B140: -141056.6426 | C140: 340554.101 | D140: -0.01022100463 | E140: 368611.0038
A141: =+球面波!A141 -> 1.29 | B141: =+D141*COS($B$2)+E141*SIN($B$2) -> -141056.0416 | C141: =-D141*SIN($B$2)+E141*COS($B$2) -> 340552.6498 | D141: -0.01022100463 | E141: 368609.4331
A142: =+球面波!A142 -> 1.3 | B142: -141055.4368 | C142: 340551.1897 | D142: -0.01022100463 | E142: 368607.8526
A143: =+球面波!A143 -> 1.31 | B143: -141054.8282 | C143: 340549.7204 | D143: -0.01022100463 | E143: 368606.2623
A144: =+球面波!A144 -> 1.32 | B144: -141054.2159 | C144: 340548.2421 | D144: -0.01022100463 | E144: 368604.6622
A145: =+球面波!A145 -> 1.33 | B145: -141053.5998 | C145: 340546.7546 | D145: -0.01022100463 | E145: 368603.0522
A146: =+球面波!A146 -> 1.34 | B146: -141052.9799 | C146: 340545.2579 | D146: -0.01022100463 | E146: 368601.4322
A147: =+球面波!A147 -> 1.35 | B147: -141052.3561 | C147: 340543.7521 | D147: -0.01022100463 | E147: 368599.8023
A148: =+球面波!A148 -> 1.36 | B148: -141051.7286 | C148: 340542.237 | D148: -0.01022100463 | E148: 368598.1624
A149: =+球面波!A149 -> 1.37 | B149: -141051.0972 | C149: 340540.7127 | D149: -0.01022100463 | E149: 368596.5125
A150: =+球面波!A150 -> 1.38 | B150: -141050.462 | C150: 340539.1791 | D150: -0.01022100463 | E150: 368594.8526
A151: =+球面波!A151 -> 1.39 | B151: -141049.823 | C151: 340537.6362 | D151: -0.01022100463 | E151: 368593.1826
A152: =+球面波!A152 -> 1.4 | B152: -141049.18 | C152: 340536.084 | D152: -0.01022100463 | E152: 368591.5025
A153: =+球面波!A153 -> 1.41 | B153: -141048.5332 | C153: 340534.5224 | D153: -0.01022100463 | E153: 368589.8122
A154: =+球面波!A154 -> 1.42 | B154: -141047.8826 | C154: 340532.9515 | D154: -0.01022100463 | E154: 368588.1118
A155: =+球面波!A155 -> 1.43 | B155: -141047.228 | C155: 340531.3711 | D155: -0.01022100463 | E155: 368586.4013
A156: =+球面波!A156 -> 1.44 | B156: -141046.5695 | C156: 340529.7813 | D156: -0.01022100463 | E156: 368584.6805
A157: =+球面波!A157 -> 1.45 | B157: -141045.9071 | C157: 340528.1821 | D157: -0.01022100463 | E157: 368582.9496
A158: =+球面波!A158 -> 1.46 | B158: -141045.2408 | C158: 340526.5734 | D158: -0.01022100463 | E158: 368581.2083
A159: =+球面波!A159 -> 1.47 | B159: -141044.5705 | C159: 340524.9552 | D159: -0.01022100463 | E159: 368579.4568
A160: =+球面波!A160 -> 1.48 | B160: -141043.8963 | C160: 340523.3275 | D160: -0.01022100463 | E160: 368577.695
A161: =+球面波!A161 -> 1.49 | B161: -141043.2182 | C161: 340521.6903 | D161: -0.01022100463 | E161: 368575.9229
A162: =+球面波!A162 -> 1.5 | B162: -141042.5361 | C162: 340520.0435 | D162: -0.01022100463 | E162: 368574.1405
A163: =+球面波!A163 -> 1.51 | B163: -141041.8501 | C163: 340518.3872 | D163: -0.01022100463 | E163: 368572.3477
A164: =+球面波!A164 -> 1.52 | B164: -141041.16 | C164: 340516.7213 | D164: -0.01022100463 | E164: 368570.5445
A165: =+球面波!A165 -> 1.53 | B165: -141040.466 | C165: 340515.0457 | D165: -0.01022100463 | E165: 368568.7309
A166: =+球面波!A166 -> 1.54 | B166: -141039.7681 | C166: 340513.3606 | D166: -0.01022100463 | E166: 368566.907
A167: =+球面波!A167 -> 1.55 | B167: -141039.0661 | C167: 340511.6658 | D167: -0.01022100463 | E167: 368565.0725
A168: =+球面波!A168 -> 1.56 | B168: -141038.3601 | C168: 340509.9613 | D168: -0.01022100463 | E168: 368563.2277
A169: =+球面波!A169 -> 1.57 | B169: -141037.6501 | C169: 340508.2472 | D169: -0.01022100463 | E169: 368561.3724
A170: =+球面波!A170 -> 1.58 | B170: -141036.9361 | C170: 340506.5234 | D170: -0.01022100463 | E170: 368559.5065
A171: =+球面波!A171 -> 1.59 | B171: -141036.2181 | C171: 340504.7899 | D171: -0.01022100463 | E171: 368557.6302
A172: =+球面波!A172 -> 1.6 | B172: -141035.4961 | C172: 340503.0467 | D172: -0.01022100463 | E172: 368555.7434
A173: =+球面波!A173 -> 1.61 | B173: -141034.77 | C173: 340501.2938 | D173: -0.01022100463 | E173: 368553.846
A174: =+球面波!A174 -> 1.62 | B174: -141034.0399 | C174: 340499.5311 | D174: -0.01022100463 | E174: 368551.9381
A175: =+球面波!A175 -> 1.63 | B175: -141033.3058 | C175: 340497.7587 | D175: -0.01022100463 | E175: 368550.0197
A176: =+球面波!A176 -> 1.64 | B176: -141032.5676 | C176: 340495.9764 | D176: -0.01022100463 | E176: 368548.0906
A177: =+球面波!A177 -> 1.65 | B177: -141031.8253 | C177: 340494.1844 | D177: -0.01022100463 | E177: 368546.151
A178: =+球面波!A178 -> 1.66 | B178: -141031.079 | C178: 340492.3826 | D178: -0.01022100463 | E178: 368544.2007
A179: =+球面波!A179 -> 1.67 | B179: -141030.3287 | C179: 340490.571 | D179: -0.01022100463 | E179: 368542.2398
A180: =+球面波!A180 -> 1.68 | B180: -141029.5742 | C180: 340488.7496 | D180: -0.01022100463 | E180: 368540.2684
A181: =+球面波!A181 -> 1.69 | B181: -141028.8157 | C181: 340486.9183 | D181: -0.01022100463 | E181: 368538.2862
A182: =+球面波!A182 -> 1.7 | B182: -141028.0531 | C182: 340485.0772 | D182: -0.01022100463 | E182: 368536.2934
A183: =+球面波!A183 -> 1.71 | B183: -141027.2865 | C183: 340483.2262 | D183: -0.01022100463 | E183: 368534.2899
A184: =+球面波!A184 -> 1.72 | B184: -141026.5157 | C184: 340481.3654 | D184: -0.01022100463 | E184: 368532.2758
A185: =+球面波!A185 -> 1.73 | B185: -141025.7409 | C185: 340479.4946 | D185: -0.01022100463 | E185: 368530.2509
A186: =+球面波!A186 -> 1.74 | B186: -141024.9619 | C186: 340477.614 | D186: -0.01022100463 | E186: 368528.2154
A187: =+球面波!A187 -> 1.75 | B187: -141024.1789 | C187: 340475.7235 | D187: -0.01022100463 | E187: 368526.1691
A188: =+球面波!A188 -> 1.76 | B188: -141023.3917 | C188: 340473.8231 | D188: -0.01022100463 | E188: 368524.1121
A189: =+球面波!A189 -> 1.77 | B189: -141022.6005 | C189: 340471.9127 | D189: -0.01022100463 | E189: 368522.0444
A190: =+球面波!A190 -> 1.78 | B190: -141021.8051 | C190: 340469.9924 | D190: -0.01022100463 | E190: 368519.9659
A191: =+球面波!A191 -> 1.79 | B191: -141021.0056 | C191: 340468.0622 | D191: -0.01022100463 | E191: 368517.8766
A192: =+球面波!A192 -> 1.8 | B192: -141020.202 | C192: 340466.122 | D192: -0.01022100463 | E192: 368515.7766
A193: =+球面波!A193 -> 1.81 | B193: -141019.3942 | C193: 340464.1719 | D193: -0.01022100463 | E193: 368513.6658
A194: =+球面波!A194 -> 1.82 | B194: -141018.5824 | C194: 340462.2118 | D194: -0.01022100463 | E194: 368511.5442
A195: =+球面波!A195 -> 1.83 | B195: -141017.7664 | C195: 340460.2417 | D195: -0.01022100463 | E195: 368509.4118
A196: =+球面波!A196 -> 1.84 | B196: -141016.9462 | C196: 340458.2616 | D196: -0.01022100463 | E196: 368507.2686
A197: =+球面波!A197 -> 1.85 | B197: -141016.1219 | C197: 340456.2716 | D197: -0.01022100463 | E197: 368505.1146
A198: =+球面波!A198 -> 1.86 | B198: -141015.2935 | C198: 340454.2715 | D198: -0.01022100463 | E198: 368502.9498
A199: =+球面波!A199 -> 1.87 | B199: -141014.4609 | C199: 340452.2614 | D199: -0.01022100463 | E199: 368500.7741
A200: =+球面波!A200 -> 1.88 | B200: -141013.6242 | C200: 340450.2413 | D200: -0.01022100463 | E200: 368498.5876
A201: =+球面波!A201 -> 1.89 | B201: -141012.7834 | C201: 340448.2112 | D201: -0.01022100463 | E201: 368496.3902
A202: =+球面波!A202 -> 1.9 | B202: -141011.9383 | C202: 340446.1711 | D202: -0.01022100463 | E202: 368494.182
A203: =+球面波!A203 -> 1.91 | B203: -141011.0892 | C203: 340444.1209 | D203: -0.01022100463 | E203: 368491.9629
A204: =+球面波!A204 -> 1.92 | B204: -141010.2358 | C204: 340442.0606 | D204: -0.01022100463 | E204: 368489.7329
A205: =+球面波!A205 -> 1.93 | B205: =+D205*COS($B$2)+E205*SIN($B$2) -> -141009.3783 | C205: =-D205*SIN($B$2)+E205*COS($B$2) -> 340439.9904 | D205: -0.01022100463 | E205: 368487.4921
A206: =+球面波!A206 -> 1.94 | B206: -141008.5166 | C206: 340437.91 | D206: -0.01022100463 | E206: 368485.2403
A207: =+球面波!A207 -> 1.95 | B207: -141007.6508 | C207: 340435.8196 | D207: -0.01022100463 | E207: 368482.9777
... 4293 more rows
